{"text_format":"1","workbook":"xlsx","n_sheets":24,"sheets":["Titre","F1","F2","F3 ","F11","F21.1","F21.2","F21.3","F21.4","F22.1","F22.2","F22.3","F22.4","F22.5","F22.6","F22.7","F22.8","F22.9","F23","F31","F41","Annexe 5","F43","F51"],"not_rendered":{"charts":0,"images":2,"macros":1,"external_links":1,"defined_names":34,"comments":0,"pivot_tables":0},"unopened":[],"bounds":{"document_bytes":16777216,"sheet_cells":100000,"rows_first":2000,"rows_last":500,"rows_between":2000,"halvings":0,"cell_chars":16384,"cell_head_chars":4096},"cells_cut":0,"cells_raw":0,"read":"whole","date_system":"1904"}

{"sheet":"Titre","index":0,"n_rows":45,"n_cols":16,"rows_kept":45,"cut":false,"hidden":false,"merged":[[37,6,39,15],[29,10,29,11],[29,12,29,13],[30,10,30,15],[32,10,32,11],[32,12,32,13],[33,10,33,15],[25,11,25,12],[25,13,25,15],[27,10,27,11],[27,12,27,13],[35,6,36,15],[44,2,44,15],[24,7,24,10],[24,11,24,15],[1,14,1,15],[2,10,2,15],[3,10,3,15],[4,10,4,15],[7,1,7,15],[8,1,8,15],[10,7,10,15],[12,7,12,10],[15,7,15,15],[16,7,16,15],[18,7,22,15],[25,7,25,8],[25,9,25,10]]}
[null,null,null,null,null,null,null,null,null,null,null,null,null,null,null,"\n\nAnnexe C"]
[null,null,null,null,null,null,null,null,null,null,null,null,null,null,"jj mmmm aaaa"]
[]
[]
[]
[null,"OFFRE A REMPLIR PAR LE SOUMISSIONNAIRE"]
[]
[null,"RC"]
[null,"Titre du projet"]
[]
[null,"Communes(s)",null,null,null,null,":","Xxxxxxx"]
[]
[null,"Mandat n°",null,null,null,null,":","CPXXXXX"]
[null,"(à mentionner dans toutes les correspondances et documents)"]
[]
[null,"Prestation (s)",null,null,null,null,":","Prestations de services de xxx"]
[null,null,null,null,null,null,null,"Détail des prestations"]
[]
[null,"Soumissionnaire",null,null,null,null," :","Soumissionnaire…"]
[]
[]
[]
[]
[]
[null,"Montant de l'offre TTC 1)",null,null,null,null," :","Offre soumissionnaire 1)",null,null,null,"Offre après vérification"]
[null,null,null,null,null,"TTC ",null,"CHF",null,{"$f":"'F11'!M30","v":0},null,"CHF"]
[]
[null,"Date limite pour les questions",null,null,null,null,null,null,null,":","jj mmmm aaaa",null,"avant",null,"..h.."]
[]
[null,"Dépôt des offres",null,null,null,null,null,null,null,":","jj mmmm aaaa",null,"avant",null,"..h.."]
[null,"au",null,null,null,null,null,null,null,":","Secrétariat de la division infrastructures du Direction générale de la mobilité et des routes DGMR\nPlace de la Riponne 10, 1014 Lausanne (bureau A213)"]
[]
[null,"Ouverture des offres",null,null,null,null,null,null,null,null,"jj mmmm aaaa",null,"à",null,"..h.."," précise"]
[null,"au",null,null,null,null,null,null,null,":","Secrétariat de la division infrastructures de la DGMR, place de la Riponne 10,\n1014 Lausanne (salle A200)"]
[]
[null,null,null,null,null,null,"Lausanne, jj mmmm aaaa"]
[null,"Lieu et date",null,null,null,":"]
[]
[]
[null,"Signatures 2)",null,null,null,":"]
[]
[null,"1)"," Report automatique depuis la fiche F11"]
[null,"2)"," Tous les membres d'un pool de mandataires (nommé ci-après soumissionnaire) doivent signer le présent"]
[null,null," document."]
[null,null,"Par sa signature, le soumissionnaire s'engage sur l'exactitude des renseignements donnés et également sur le contenu de toutes les annexes"]

{"sheet":"F1","index":1,"n_rows":22,"n_cols":5,"rows_kept":22,"cut":false,"hidden":false,"merged":[[21,2,21,3],[12,1,14,1],[12,2,12,3],[12,4,14,4],[13,2,14,2],[13,3,14,3],[15,2,15,3],[16,2,16,3],[17,2,17,3],[18,2,18,3],[19,2,19,3],[20,2,20,3],[11,2,11,3],[1,1,1,3],[2,1,2,4],[3,1,5,1],[3,2,5,3],[3,4,5,4],[6,2,6,3],[7,1,8,1],[7,2,7,3],[7,4,8,4],[9,2,9,3],[10,2,10,3]]}
[]
[null,"Récapitulation des pièces",null,null,"F1"]
[]
[null,"N°","Objet du formulaire",null,"Nombre de pages"]
[]
[]
[null,"F1","Récapitulation des pièces",null,1]
[null,"F2","Identification du soumissionnaire",null,1]
[null,null,">","joindre en annexe la convention d’association qui lie les partenaires entre eux et avec le sous-traitant (seulement en cas de groupement)"]
[null,"F3","Engagement sur l’honneur",null,2]
[null,"F11","Montant de l’offre financière",null,2]
[null,"F21","Nombre, planification et disponibilité des moyens et des ressources (nombre d'heures nécessaires pour l'exécution du marché par collaborateur et par phase de prestations)",null,4]
[null,"F22","Qualifications des personnes-clés (et de leurs suppléants) désignées pour l’exécution du marché",null,9]
[null,null,">","facultatif : joindre le curriculum vitae de chaque personne-clé exigée dans le cadre de cet appel d'offres (fiches F22). Document fourni facultativement à titre indicatif (pas évalué)"]
[]
[null,"F23","Organigramme de répartition des tâches et des responsabilités pour l’exécution du marché",null,1]
[null,"F31","Propositions du soumissionnaire pour satisfaire les exigences du client, analyse des risques",null,1]
[null,"F41","Qualifications du soumissionnaire pour satisfaire les exigences du client",null,1]
[null,"Annexe 5","Contribution de l'entreprise au développement durable ",null,4]
[null,"F44","Contribution à la formation des apprentis (marchés non soumis aux accord GATT/OMC)",null,1]
[null,"F43","Contribution du soumissionnaire à la formation des apprentis",null,1]
[null,"F51","Références du soumissionnaire en lien avec le projet",null,"1 / réf."]

{"sheet":"F2","index":2,"n_rows":43,"n_cols":14,"rows_kept":43,"cut":false,"hidden":false,"merged":[[32,2,32,6],[32,9,32,13],[40,1,40,12],[28,2,28,11],[28,12,28,13],[29,4,29,13],[30,4,30,5],[30,7,30,9],[30,11,30,13],[24,4,24,5],[24,7,24,9],[24,11,24,13],[26,2,26,12],[27,2,27,3],[27,4,27,13],[23,4,23,13],[16,2,16,11],[16,12,16,13],[17,4,17,13],[18,4,18,5],[18,7,18,9],[18,11,18,13],[20,2,20,12],[21,2,21,3],[21,4,21,13],[22,2,22,11],[22,12,22,13],[12,4,12,5],[12,7,12,9],[12,11,12,13],[14,2,14,12],[15,2,15,3],[15,4,15,13],[11,4,11,13],[1,1,1,11],[3,2,3,3],[3,4,3,13],[4,2,4,3],[4,4,4,13],[6,2,6,12],[8,2,8,12],[9,2,9,3],[9,4,9,13],[10,2,10,11],[10,12,10,13]]}
[]
[null,"Identification du soumissionnaire",null,null,null,null,null,null,null,null,null,null,null,"F2"]
[]
[null,null,"Soumissionnaire 1) :",null,{"$f":"IF(Candidat=\"\",\"\",Candidat)","v":"Soumissionnaire…"}]
[null,null,"Forme juridique :"]
[]
[null,null,"Composition du soumissionnaire"]
[]
[null,null,"Soumissionnaire individuel ou société pilote"]
[null,null,"Raison sociale exacte :"]
[null,null,"    Abréviation 2) : "]
[null,null,null,"Adresse :"]
[null,null,null,"Tél :                                                      ",null,null," Fax :",null,null,null,"Email :"]
[]
[null,null,"Membre"]
[null,null,"Raison sociale exacte :"]
[null,null,"    Abréviation 2) : "]
[null,null,null,"Adresse :"]
[null,null,null,"Tél :                                                      ",null,null," Fax :",null,null,null,"Email :"]
[]
[null,null,"Membre"]
[null,null,"Raison sociale exacte :"]
[null,null,"    Abréviation 2) : "]
[null,null,null,"Adresse :"]
[null,null,null,"Tél :                                                      ",null,null," Fax :",null,null,null,"Email :"]
[]
[null,null,"Sous-traitant"]
[null,null,"Raison sociale exacte :"]
[null,null,"    Abréviation 2) : "]
[null,null,null,"Adresse :"]
[null,null,null,"Tél :                                                      ",null,null," Fax :",null,null,null,"Email :"]
[]
[null,null,"Pourcentages de participation\n pour le bureau d'ingénieurs isolé",null,null,null,null,"ou",null,"Pourcentages de participation dans le groupement de bureaux"]
[]
[null,null,"Individuel ",74," % (min 75 %)",null,null,null,null,null,"Pilote ",null," % (min 60 %)"]
[]
[null,null,null,null," % (max 25 %) sous-traitant",null,null,null,null,null,"Membre(s) associé(s) ",null," % (max 40 %)"]
[]
[null,null,null,null,null,null,null,null,null,null,"Sous-traitant ",null," % (max 25 %)"]
[]
[]
[null,"1)","Report automatique de la page titre"]
[null,"2)","Abréviation à reporter dans d'autres fiches"]

{"sheet":"F3 ","index":3,"n_rows":39,"n_cols":9,"rows_kept":39,"cut":false,"hidden":false,"merged":[[39,1,39,9],[36,4,36,8],[36,2,36,3],[37,4,37,8],[38,2,38,3],[38,4,38,8],[37,2,37,3],[33,2,33,3],[33,4,33,8],[34,2,34,3],[34,4,34,8],[35,2,35,3],[35,4,35,8],[30,2,30,3],[30,4,30,8],[31,2,31,3],[31,4,31,8],[32,2,32,3],[32,4,32,8],[27,2,27,3],[27,4,27,8],[28,2,28,3],[28,4,28,8],[29,2,29,3],[29,4,29,8],[25,2,25,3],[25,4,25,8],[26,2,26,3],[26,4,26,8],[24,2,24,3],[24,4,24,8],[15,5,15,8],[16,5,16,8],[17,5,17,8],[20,8,20,9],[23,2,23,3],[23,4,23,8],[1,8,1,9],[4,1,4,8],[5,2,5,8],[6,2,6,3],[6,4,6,8],[7,2,7,3],[7,4,7,8],[8,2,8,3],[8,4,8,8],[9,2,9,3],[9,4,9,8],[13,2,13,3],[10,2,10,3],[10,4,10,8],[11,2,11,3],[11,4,11,8],[12,2,12,3],[12,4,12,8],[13,4,13,8]]}
[]
[null,null,null,null,null,null,null,null,"F3"]
[null,"Engagement sur l'honneur"]
[]
[]
[null,null,"Conformément à l’accord intercantonal sur les marchés publics (AIMP), à la loi vaudoise sur les marchés publics (LVMP) et son règlement d’application, le soumissionnaire prend (pour lui-même, ses membres associés éventuels et/ou pour son sous-traitant) en signant la page de garde de l'offre, les engagements suivants :"]
[null,null,"a)",null,"il confirme avoir pris connaissance de tous les documents et reçu tous les renseignements nécessaires pour l’établissement de son offre. Il confirme par ailleurs s’être rendu exactement compte de l’importance, des exigences et des contraintes du marché et qu’en conséquence, il s’engage à exécuter l’ensemble des prestations strictement justifiées pour l’exécution et le bon déroulement du mandat pour les prix indiqués dans son offre, en se conformant strictement à toutes les prescriptions d’exécution énumérées dans l’appel d’offres ;"]
[null,null,"b)",null,"en remplissant son offre, il a tenu compte du fait que l’adjudicateur n’acceptera, après la décision d’adjudication, aucune sous-évaluation de prestations, aucun oubli de prestations ou mauvaise compréhension des prestations à exécuter. Il appartient donc au soumissionnaire de poser toute question d’éclaircissement. Le soumissionnaire ne pourra donc pas, suite au dépôt de son offre, justifier une modification de son offre par le fait que le cahier des charges n’était pas assez précis ;"]
[null,null,"c)",null,"en déposant son offre, le soumissionnaire déclare accepter sans réserve la procédure, confirme qu’il respecte toutes les conditions du cahier des charges et qu’il s’engage à les respecter pendant la durée de la procédure de mise en concurrence jusqu’à la décision d’adjudication ainsi que pour la durée de l’exécution du marché depuis la signature du contrat. Si le soumissionnaire ne peut pas ou ne pourra pas respecter l’une ou l’autre des conditions, il devra se justifier par courrier dans le même délai fixé pour le dépôt du dossier ou de l’offre ;"]
[null,null,"d)",null,"il confirme qu’il a rempli correctement tous les formulaires et atteste que les indications, informations et preuves fournies dans et avec son offre sont exactes et conformes à la vérité ;"]
[null,null,"e)",null,"il autorise l’adjudicateur, ou ses représentants, à vérifier sans délai et sur simple demande, les indications, informations et preuves fournies avec son offre (confidentialité assurée par l’adjudicateur) ;"]
[null,null,"f)",null,"il confirme que, conformément aux critères énoncés dans le cahier des charges, il possède les ressources humaines et financières suffisantes, ainsi que les compétences techniques et l’expérience nécessaires à l’exécution du mandat ;"]
[null,null,"g)",null,"il certifie qu’il est à jour avec le paiement de ses contributions sociales et de ses impôts et qu’il n’est pas impliqué à juste titre dans une procédure de faillite ou qu’il n’a pas obtenu de concordat judiciaire ou extrajudiciaire ; il garantit également que tel n’est pas le cas pour les membres du pool ainsi que pour le sous-traitant éventuel ;"]
[null,null,"h)",null,"il s’engage à fournir à l’adjudicateur, à tout moment et dans un délai de 10 jours, l’une ou l’autre voire la totalité des attestations mentionnées ci-dessous, notamment auprès du soumissionnaire pressenti pour être l’adjudicataire du marché ; tous les documents ne doivent pas dépasser 30 jours de validité ; notamment :"]
[]
[null,null,null,null,"Conditions","Documents ou attestations qui peuvent être requis"]
[null,null,null,null,"Profil du soumissionnaire correspondant à la nature du marché mis en concurrence","Copie de l'extrait du registre du commerce ou copie du diplôme professionnel, ceci y compris pour le sous-traitant éventuel, sur simple réquisition "]
[null,null,null,null,"Intégrité sociale et fiscale du soumissionnaire","Attestations du paiement des cotisations sociales (AVS, AI, APG, AC, AF, LPP ou équivalents), preuves cotisations assurance RC + assurance-accident, attestations fiscale d'entreprise, et fiscale à la source pour le personnel étranger, preuve assujettissement TVA, ceci y compris pour le sous-traitant éventuel, sur simple réquisition. Tout document permettant d’attester la solvabilité financière du soumissionnaire. Les organes qui engagent la responsabilité du (des) bureau(x) doivent pouvoir prouver qu'ils n'ont pas fait l'objet d'une condamnation pénale pour faute professionnelle grave dans les deux ans précédant la date du dépôt de l'offre. Les indépendants fournissent uniquement les attestations AVS et fiscale, ainsi que la preuve du paiement de la cotisation assurance accident et de l'assujettissement à la TVA qui, en outre, prouvent leur statut d'indépendant. "]
[]
[]
[null,null,null,null,null,null,null,null,"F3"]
[null,"Engagement sur l'honneur (suite)"]
[]
[null,null,"i)",null,"il respecte les dispositions relatives à la protection des travailleurs et la législation sur le travail en Suisse, notamment en matière de durée du temps de travail, des vacances, de travail au noir, de travail forcé/contraint et de personnel mineur, ceci y compris pour le sous-traitant éventuel, le cas échéant ;"]
[null,null,"j)",null,"il s'engage à respecter la Convention Collective de travail (CCT étendue) des bureaux d'architectes et d'ingénieurs vaudois du 1er janvier 2019"]
[null,null,"k)",null,"il s’engage à respecter les dispositions contractuelles relatives à l'égalité ou à la promotion de l'égalité de traitement entre hommes et femmes, notamment en matière de conditions salariales pour des compétences et fonctions équivalentes, ceci y compris pour le sous-traitant éventuel, le cas échéant ;"]
[null,null,"l)",null,"il garantit le respect des dispositions relatives à la protection de l'environnement, ainsi que celles en matière de lutte pour la protection des eaux, la protection de l'air et la gestion des déchets et de lutte contre les nuisances sonores ;"]
[null,null,"m)",null,"il met en place les personnes clés désignées pour l’exécution du marché. En cas de remplacement de la ou des personnes-clés, le soumissionnaire a pris note que l’adjudicateur est en droit d’exiger de l’adjudicataire qu’il mette à disposition, dans un délai déterminé, des personnes-clés de même niveau de compétence, d’expérience, de capacité et de disponibilité. S’il ne s’exécute pas, la décision d’adjudication peut être révoquée et le contrat résilié ;"]
[null,null,"n)",null,"il accepte que son résultat, notamment les notes attribuées par critère, soit transmis aux autres soumissionnaires sous la forme d’un tableau récapitulatif ;"]
[null,null,"o)",null,"en cas d’adjudication, il acceptera de fournir dans les délais impartis, par l’intermédiaire d’un établissement bancaire, les garanties financières demandées. La garantie délivrée par un organisme étranger doit être de portée équivalente à celle que délivrent les organismes suisses et doit pouvoir être sollicitée auprès d’une représentation ayant son siège en Suisse ;"]
[null,null,"p)",null,"il acceptera de suivre, le cas échéant, les directives et instructions du coordonnateur santé et sécurité désigné par le Maître de l’ouvrage ;"]
[null,null,"q)",null,"il créera une société simple selon le Code des obligations et/ou le contrat de société SIA 1012/2 s’il est organisé en groupement de mandataires. Il fournira le projet de convention joint au dossier d’appel d’offre signé par tous les membres du groupement ;"]
[null,null,"r)",null,"il mettra en place les moyens informatiques et de transmission des données compatibles avec les exigences de l’adjudicateur, ceci sans frais supplémentaire ou avenant au contrat ;"]
[null,null,"s)",null,"il accepte que l’adjudicateur puisse interrompre ou abandonner à tout moment la procédure sans dédommagements si des autorisations étaient refusées, en cas d’opposition au projet ou de refus, partiel ou total, de crédit par les autorités publiques ;"]
[null,null,"t)",null,"il accepte que l’adjudicateur puisse remettre en appel d’offres ou recommencer partiellement ou totalement la procédure si, après ouverture et vérification des offres, il devait constater qu’un nombre insuffisant de dossiers remplit les conditions de participation ou les critères d’aptitude et que cela conduit à une absence de véritable concurrence ;"]
[null,null,"u)",null,"qu’il respectera la confidentialité des dossiers et qu’il s’engage à ne pas contacter les membres du Groupe d’Evaluation des Offres (GEO) au sujet de la procédure. Il s’engage à ne divulguer aucune information au sujet de ses offres technique et financière directement ou indirectement à quiconque pendant toute la durée de la procédure ;"]
[null,null,"v)",null,"il fait preuve d’intégrité morale, notamment en prenant des mesures pour lutter contre la corruption et en s’abstenant d’offrir un quelconque avantage à un membre de l’autorité adjudicatrice ou à un membre du comité d’évaluation, dans le but d’obtenir un marché au détriment d’un autre soumissionnaire ou de soustraire le marché à une mise en concurrence. Toute violation de la clause relative à l’intégrité morale entraîne en principe l’annulation de l’adjudication, ainsi que la dénonciation anticipée du contrat par l’adjudicateur, pour justes motifs. D’autres sanctions peuvent être prises par l’adjudicateur, notamment si la violation de la clause relative à l’intégrité morale devait être découverte en cours de procédure d’appel d’offres ;"]
[null,null,"w)",null,"il confirme qu’il n’a pas faussé la concurrence en réalisant des arrangements ou des accords entre soumissionnaires ;"]
[null,null,"x)",null,"il accepte que le non-respect de l’une ou l’autre des conditions ci-dessus peut entraîner son exclusion immédiate de la procédure ou la résiliation du contrat en cours d’exécution du marché ;"]

{"sheet":"F11","index":4,"n_rows":37,"n_cols":14,"rows_kept":37,"cut":false,"hidden":false,"merged":[[25,1,25,11],[30,1,30,13],[21,1,21,4],[21,5,21,6],[22,1,22,4],[22,5,22,6],[23,1,23,6],[24,1,24,6],[20,1,20,4],[20,5,20,6],[14,1,14,4],[14,5,14,6],[15,1,15,4],[15,5,15,6],[16,1,16,4],[16,5,16,6],[17,1,17,4],[17,5,17,6],[18,1,18,4],[18,5,18,6],[19,1,19,6],[10,15,11,15],[11,1,11,4],[11,5,11,6],[12,1,12,4],[12,5,12,6],[9,10,10,10],[9,11,10,11],[13,1,13,4],[13,5,13,6],[9,7,10,7],[9,8,10,8],[9,9,10,9],[10,1,10,4],[3,3,3,11],[4,3,4,13],[5,1,5,2],[5,3,5,13],[7,1,7,11],[7,12,10,12],[7,13,10,13],[8,8,8,11],[9,1,9,4],[9,5,9,6],[6,12,6,13],[6,1,6,9]]}
[]
[null,null,null,null,null,null,null,null,null,null,null,null,null,"F11"]
[]
[null,"Critère 1 :",null,"Prix",null,null,null,null,null,null,null,null,"CPT",0.2]
[null,"Sous-critère 1.1 :",null,"Montant de l'offre financière en rapport avec le cahier des charges"]
[null,"Soumissionnaire 1) :",null,{"$f":"IF(Candidat=\"\",\"\",Candidat)","v":"Soumissionnaire…"}]
[null,"Montant des travaux estimés par le soumissionnaire",null,null,null,null,null,null,null,null,null,"MCHF","Insérer le montant estimé"]
[null,"* Seule les colonnes tramées en jaune sont à remplir par le soumissionnaire",null,null,null,null,null,null,null,null,null,null,"Montant Total de la prestation en CHF","Prix moyen de l'heure en CHF 3)"]
[null,null,null,null,null,null,null,null,"Heures 2)"]
[null,"Prestations ",null,null,null,"CDC\n§ 2.6",null,"Total des heures","Route, canalisations, marquages, signalisation","Tunnel","Assainissement parois rocheuses","Ouvrages de soutènement"]
[]
[null,"Nb. d'heures à disposition du MO pour des tâches qu'il peut déléguer 4)",null,null,null,"P1",null,{"$f":"SUM(I12:L12)","v":400},100,100,100,100,null,{"$f":"IF(H12=0,0,M12/H12)","v":0}]
[null,{"$f":"'F21.1'!B25","v":"P10 \nReprises des études précédentes ou proposition et suivi d'investigation"},null,null,null,"P10",null,{"$f":"SUM(I13:L13)","v":0},{"$f":"'F21.1'!CI25","v":0},{"$f":"'F21.2'!CI25","v":0},{"$f":"'F21.3'!CI25","v":0},{"$f":"'F21.4'!CI25","v":0},null,{"$f":"IF(H13=0,0,M13/H13)","v":0}]
[null,{"$f":"'F21.1'!B33","v":"P30\nProposition et suivi d'investigation pour tunnel, route, ouvrages de soutènement et parois rocheuses"},null,null,null,"P30",null,{"$f":"SUM(I14:L14)","v":0},{"$f":"'F21.1'!CI33","v":0},{"$f":"'F21.2'!CI33","v":0},{"$f":"'F21.3'!CI33","v":0},{"$f":"'F21.4'!CI33","v":0},null,0]
[null,{"$f":"'F21.1'!B41","v":"P31\nAvant-projet"},null,null,null,"P31",null,{"$f":"SUM(I15:L15)","v":0},{"$f":"'F21.1'!CI41","v":0},{"$f":"'F21.2'!CI41","v":0},{"$f":"'F21.3'!CI49","v":0},{"$f":"'F21.4'!CI41","v":0},null,0]
[null,"P31\nExamen préalable",null,null,null,"P31",null,0,{"$f":"'F21.1'!CI49","v":0},{"$f":"'F21.2'!CI49","v":0},{"$f":"'F21.3'!CI49","v":0},{"$f":"'F21.4'!CI49","v":0},null,0]
[null,{"$f":"'F21.1'!B57","v":"P32\nProjet de l'ouvrage"},null,null,null,"P32",null,0,{"$f":"'F21.1'!CI57","v":0},{"$f":"'F21.2'!CI57","v":0},{"$f":"'F21.3'!CI57","v":0},{"$f":"'F21.4'!CI57","v":0},null,0]
[null,{"$f":"'F21.1'!B65","v":"P33\nEnquête"},null,null,null,"P33",null,0,{"$f":"'F21.1'!CI65","v":0},{"$f":"'F21.2'!CI65","v":0},{"$f":"'F21.3'!CI65","v":0},{"$f":"'F21.4'!CI65","v":0},null,0]
[null,{"$f":"'F21.1'!B73","v":"P41\nAppel d'offres, comparaison des offres et proposition d'adjudication"},null,null,null,"P41",null,{"$f":"SUM(I19:L19)","v":0},{"$f":"'F21.1'!CI73","v":0},{"$f":"'F21.2'!CI73","v":0},{"$f":"'F21.3'!CI73","v":0},{"$f":"'F21.4'!CI73","v":0},null,0]
[null,"Total étape 1 (y c. 1/2 P1) : ",null,null,null,null,null,{"$f":"SUM(H13:H19)+(0.5*H12)","v":200},50,50,50,50,0,{"$f":"IF(M20=0,\"\",M20/H20)","v":""}]
[null,{"$f":"'F21.1'!B82","v":"P51\nProjet d'exécution"},null,null,null,"P51",null,{"$f":"SUM(I21:L21)","v":0},{"$f":"'F21.1'!CI82","v":0},{"$f":"'F21.2'!CI82","v":0},{"$f":"'F21.3'!CI82","v":0},{"$f":"'F21.4'!CI82","v":0},null,0]
[null,{"$f":"'F21.1'!B90","v":"P52\nExécution de l'ouvrage, gestion modifications et documentation ouvrages"},null,null,null,"P52",null,{"$f":"SUM(I22:L22)","v":0},{"$f":"'F21.1'!CI90","v":0},{"$f":"'F21.2'!CI90","v":0},{"$f":"'F21.3'!CI90","v":0},{"$f":"'F21.4'!CI90","v":0},null,0]
[null,{"$f":"'F21.1'!B98","v":"P53\nMise en service,achèvement"},null,null,null,"P53",null,{"$f":"SUM(I23:L23)","v":0},{"$f":"'F21.1'!CI98","v":0},{"$f":"'F21.2'!CI98","v":0},{"$f":"'F21.3'!CI98","v":0},{"$f":"'F21.4'!CI98","v":0},null,0]
[null,"Total étape 2 (y c. 1/2 P1) : ",null,null,null,null,null,{"$f":"SUM(H21:H23)+(0.5*H12)","v":200},50,50,50,50,0,{"$f":"IF(M24=0,\"\",M24/H24)","v":""}]
[null,"TOTAL des heures étapes 1 et 2 :",null,null,null,null,null,{"$f":"SUM(H20+H24)","v":400},{"$f":"SUM(I20+I24)","v":100},{"$f":"SUM(J20+J24)","v":100},{"$f":"SUM(K20+K24)","v":100},{"$f":"SUM(L20+L24)","v":100}]
[]
[null,null,null,null,null,null,null,null,null,null,"TOTAL Honoraires HT étapes 1 et 2",null,{"$f":"M20+M24","v":0}]
[null,null,null,null,null,null,null,null,null,null,"Frais HT (taux fixé par le MO)",0.02,{"$f":"M27*L28","v":0}]
[null,null,null,null,null,null,null,null,null,null,"TVA (Honoraire et frais)",7.6999999999999999E-2,{"$f":"(M27+M28)*L29","v":0}]
[null,null,null,null,null,null,null,null,null,null,"TOTAL OFFRE GLOBALE TTC 5)",null,{"$f":"M27+M28+M29","v":0}]
[]
[]
[null,"1)","Report automatique de la page titre"]
[null,"2)","Report des heures des fiches F21.1 à F21.4 automatique dans colonnes I, J, K et L"]
[null,"3)","Calcul automatique"]
[null,"4)","Nombre d'heures fixé par l'adjudicateur, prestations spécifiques à convenir"]
[null,"5)","Report automatique sur la page de garde de l'offre"]

{"sheet":"F21.1","index":5,"n_rows":116,"n_cols":87,"rows_kept":116,"cut":false,"hidden":false,"merged":[[112,1,112,2],[112,3,112,9],[112,11,112,85],[115,2,115,4],[106,11,106,85],[107,11,107,85],[108,11,108,85],[109,11,109,85],[110,11,110,85],[111,11,111,85],[81,1,88,2],[81,86,88,86],[89,1,96,2],[89,86,96,86],[97,1,104,2],[97,86,104,86],[56,1,63,2],[56,86,63,86],[64,1,71,2],[64,86,71,86],[72,1,79,2],[72,86,79,86],[48,1,55,2],[48,86,55,86],[18,1,18,9],[19,1,19,9],[20,1,20,9],[22,1,22,2],[22,11,22,85],[24,1,31,2],[24,86,31,86],[32,1,39,2],[32,86,39,86],[40,1,47,2],[40,86,47,86],[16,1,16,9],[6,1,6,85],[7,1,8,9],[7,10,8,10],[7,11,7,13],[7,14,7,25],[7,26,7,37],[7,38,7,49],[7,50,7,61],[7,62,7,73],[7,74,7,85],[10,1,10,9],[11,1,11,9],[12,1,12,9],[13,1,13,9],[14,1,14,9],[5,1,5,10],[5,11,5,86],[3,1,3,10],[3,11,3,82],[3,83,3,85],[4,1,4,10],[4,11,4,82]]}
[]
[null,null,null,null,null,null,null,null,null,null,null,null,null,null,null,null,null,null,null,null,null,null,null,null,null,null,null,null,null,null,null,null,null,null,null,null,null,null,null,null,null,null,null,null,null,null,null,null,null,null,null,null,null,null,null,null,null,null,null,null,null,null,null,null,null,null,null,null,null,null,null,null,null,null,null,null,null,null,null,null,null,null,null,null,null,null,"F21.1"]
[]
[null,{"$f":"NoRC","v":"RC"},null,null,null,null,null,null,null,null,null,"Organisation pour l'exécution du marché",null,null,null,null,null,null,null,null,null,null,null,null,null,null,null,null,null,null,null,null,null,null,null,null,null,null,null,null,null,null,null,null,null,null,null,null,null,null,null,null,null,null,null,null,null,null,null,null,null,null,null,null,null,null,null,null,null,null,null,null,null,null,null,null,null,null,null,null,null,null,null,"CPT",null,null,0.4]
[null,{"$f":"\"Mandat : \"&Mandat","v":"Mandat : CPXXXXX"},null,null,null,null,null,null,null,null,null,"Nombre, planification et disponibilité des moyens et des ressources ",null,null,null,null,null,null,null,null,null,null,null,null,null,null,null,null,null,null,null,null,null,null,null,null,null,null,null,null,null,null,null,null,null,null,null,null,null,null,null,null,null,null,null,null,null,null,null,null,null,null,null,null,null,null,null,null,null,null,null,null,null,null,null,null,null,null,null,null,null,null,null,null,null,null,0.25]
[null,{"$f":"DetailProjet","v":"Détail des prestations"},null,null,null,null,null,null,null,null,null,"Nombre d'heures nécessaires pour l'exécution du marché par collaborateur et par phase de prestations"]
[]
[null,"Planning des activités et des échéances",null,null,null,null,null,null,null,null,null,2018,null,null,2019,null,null,null,null,null,null,null,null,null,null,null,2020,null,null,null,null,null,null,null,null,null,null,null,2021,null,null,null,null,null,null,null,null,null,null,null,2022,null,null,null,null,null,null,null,null,null,null,null,2023,null,null,null,null,null,null,null,null,null,null,null,2024]
[null,null,null,null,null,null,null,null,null,null,null,10,11,12,1,2,3,4,5,6,7,8,9,10,11,12,1,2,3,4,5,6,7,8,9,10,11,12,1,2,3,4,5,6,7,8,9,10,11,12,1,2,3,4,5,6,7,8,9,10,11,12,1,2,3,4,5,6,7,8,9,10,11,12,1,2,3,4,5,6,7,8,9,10,11,12]
[null,"Phase 1"]
[null,"Reprise des études précédentes"]
[null,"Proposition et suivi d'investigation pour tunnel, route, ouvrages de soutènement et parois rocheuses"]
[null,"Avant-projet "]
[null,"Examen préalable"]
[null,"Projet de l'ouvrage"]
[null,"Enquête"]
[null,"Appel d'offres, comparaison des offres et proposition d'adjudication"]
[null,"Phase 2"]
[null,"Projet d'exécution"]
[null,"Exécution de l'ouvrage, gestion modifications et documentation ouvrages y. c. préparation du chantier"]
[null,"Mise en service, achèvement"]
[]
[null,null,null,"Société 1)","Nom, Prénom","Formation","Fonctions dans le projet","nb. coll.","cat. SIA","tarif horaire",null,null,null,null,null,null,null,null,null,null,null,null,null,null,null,null,null,null,null,null,null,null,null,null,null,null,null,null,null,null,null,null,null,null,null,null,null,null,null,null,null,null,null,null,null,null,null,null,null,null,null,null,null,null,null,null,null,null,null,null,null,null,null,null,null,null,null,null,null,null,null,null,null,null,null,null,"Total de la prestation"]
[null,"Phase 1"]
[null,"P10 \nReprises des études précédentes ou proposition et suivi d'investigation",null,"Pilote",null,null,"Personne-clé",1,null,null,null,null,null,null,null,null,null,null,null,null,null,null,null,null,null,null,null,null,null,null,null,null,null,null,null,null,null,null,null,null,null,null,null,null,null,null,null,null,null,null,null,null,null,null,null,null,null,null,null,null,null,null,null,null,null,null,null,null,null,null,null,null,null,null,null,null,null,null,null,null,null,null,null,null,null,null,{"$f":"SUM(L25:CH32)","v":0}]
[null,null,null,"Pilote"]
[null,null,null,"M1",null,null,"Personne-clé",1]
[null,null,null,"M1"]
[null,null,null,"M2",null,null,"Personne-clé",1]
[null,null,null,"M2"]
[null,null,null,"ST",null,null,"Personne-clé",1]
[null,null,null,"ST"]
[null,"P30\nProposition et suivi d'investigation pour tunnel, route, ouvrages de soutènement et parois rocheuses",null,"Pilote",null,null,"Personne-clé",1,null,null,null,null,null,null,null,null,null,null,null,null,null,null,null,null,null,null,null,null,null,null,null,null,null,null,null,null,null,null,null,null,null,null,null,null,null,null,null,null,null,null,null,null,null,null,null,null,null,null,null,null,null,null,null,null,null,null,null,null,null,null,null,null,null,null,null,null,null,null,null,null,null,null,null,null,null,null,{"$f":"SUM(L33:CH40)","v":0}]
[null,null,null,"Pilote"]
[null,null,null,"M1",null,null,"Personne-clé",1]
[null,null,null,"M1"]
[null,null,null,"M2",null,null,"Personne-clé",1]
[null,null,null,"M2"]
[null,null,null,"ST",null,null,"Personne-clé",1]
[null,null,null,"ST"]
[null,"P31\nAvant-projet",null,"Pilote",null,null,"Personne-clé",1,null,null,null,null,null,null,null,null,null,null,null,null,null,null,null,null,null,null,null,null,null,null,null,null,null,null,null,null,null,null,null,null,null,null,null,null,null,null,null,null,null,null,null,null,null,null,null,null,null,null,null,null,null,null,null,null,null,null,null,null,null,null,null,null,null,null,null,null,null,null,null,null,null,null,null,null,null,null,{"$f":"SUM(L41:CH48)","v":0}]
[null,null,null,"Pilote"]
[null,null,null,"M1",null,null,"Personne-clé",1]
[null,null,null,"M1"]
[null,null,null,"M2",null,null,"Personne-clé",1]
[null,null,null,"M2"]
[null,null,null,"ST",null,null,"Personne-clé",1]
[null,null,null,"ST"]
[null,"P31\nExamen préalable",null,"Pilote",null,null,"Personne-clé",1,null,null,null,null,null,null,null,null,null,null,null,null,null,null,null,null,null,null,null,null,null,null,null,null,null,null,null,null,null,null,null,null,null,null,null,null,null,null,null,null,null,null,null,null,null,null,null,null,null,null,null,null,null,null,null,null,null,null,null,null,null,null,null,null,null,null,null,null,null,null,null,null,null,null,null,null,null,null,{"$f":"SUM(L49:CH56)","v":0}]
[null,null,null,"Pilote"]
[null,null,null,"M1",null,null,"Personne-clé",1]
[null,null,null,"M1"]
[null,null,null,"M2",null,null,"Personne-clé",1]
[null,null,null,"M2"]
[null,null,null,"ST",null,null,"Personne-clé",1]
[null,null,null,"ST"]
[null,"P32\nProjet de l'ouvrage",null,"Pilote",null,null,"Personne-clé",1,null,null,null,null,null,null,null,null,null,null,null,null,null,null,null,null,null,null,null,null,null,null,null,null,null,null,null,null,null,null,null,null,null,null,null,null,null,null,null,null,null,null,null,null,null,null,null,null,null,null,null,null,null,null,null,null,null,null,null,null,null,null,null,null,null,null,null,null,null,null,null,null,null,null,null,null,null,null,{"$f":"SUM(L57:CH64)","v":0}]
[null,null,null,"Pilote"]
[null,null,null,"M1",null,null,"Personne-clé",1]
[null,null,null,"M1"]
[null,null,null,"M2",null,null,"Personne-clé",1]
[null,null,null,"M2"]
[null,null,null,"ST",null,null,"Personne-clé",1]
[null,null,null,"ST"]
[null,"P33\nEnquête",null,"Pilote",null,null,"Personne-clé",1,null,null,null,null,null,null,null,null,null,null,null,null,null,null,null,null,null,null,null,null,null,null,null,null,null,null,null,null,null,null,null,null,null,null,null,null,null,null,null,null,null,null,null,null,null,null,null,null,null,null,null,null,null,null,null,null,null,null,null,null,null,null,null,null,null,null,null,null,null,null,null,null,null,null,null,null,null,null,{"$f":"SUM(L65:CH72)","v":0}]
[null,null,null,"Pilote"]
[null,null,null,"M1",null,null,"Personne-clé",1]
[null,null,null,"M1"]
[null,null,null,"M2",null,null,"Personne-clé",1]
[null,null,null,"M2"]
[null,null,null,"ST",null,null,"Personne-clé",1]
[null,null,null,"ST"]
[null,"P41\nAppel d'offres, comparaison des offres et proposition d'adjudication",null,"Pilote",null,null,"Personne-clé",1,null,null,null,null,null,null,null,null,null,null,null,null,null,null,null,null,null,null,null,null,null,null,null,null,null,null,null,null,null,null,null,null,null,null,null,null,null,null,null,null,null,null,null,null,null,null,null,null,null,null,null,null,null,null,null,null,null,null,null,null,null,null,null,null,null,null,null,null,null,null,null,null,null,null,null,null,null,null,{"$f":"SUM(L73:CH80)","v":0}]
[null,null,null,"Pilote"]
[null,null,null,"M1",null,null,"Personne-clé",1]
[null,null,null,"M1"]
[null,null,null,"M2",null,null,"Personne-clé",1]
[null,null,null,"M2"]
[null,null,null,"ST",null,null,"Personne-clé",1]
[15,null,null,"ST"]
[null,"Phase 2"]
[null,"P51\nProjet d'exécution",null,"Pilote",null,null,"Personne-clé",1,null,null,null,null,null,null,null,null,null,null,null,null,null,null,null,null,null,null,null,null,null,null,null,null,null,null,null,null,null,null,null,null,null,null,null,null,null,null,null,null,null,null,null,null,null,null,null,null,null,null,null,null,null,null,null,null,null,null,null,null,null,null,null,null,null,null,null,null,null,null,null,null,null,null,null,null,null,null,{"$f":"SUM(L82:CH89)","v":0}]
[null,null,null,"Pilote"]
[null,null,null,"M1",null,null,"Personne-clé",1]
[null,null,null,"M1"]
[null,null,null,"M2",null,null,"Personne-clé",1]
[null,null,null,"M2"]
[null,null,null,"ST",null,null,"Personne-clé",1]
[null,null,null,"ST"]
[null,"P52\nExécution de l'ouvrage, gestion modifications et documentation ouvrages",null,"Pilote",null,null,"Personne-clé",1,null,null,null,null,null,null,null,null,null,null,null,null,null,null,null,null,null,null,null,null,null,null,null,null,null,null,null,null,null,null,null,null,null,null,null,null,null,null,null,null,null,null,null,null,null,null,null,null,null,null,null,null,null,null,null,null,null,null,null,null,null,null,null,null,null,null,null,null,null,null,null,null,null,null,null,null,null,null,{"$f":"SUM(L90:CH97)","v":0}]
[null,null,null,"Pilote"]
[null,null,null,"M1",null,null,"Personne-clé",1]
[null,null,null,"M1"]
[null,null,null,"M2",null,null,"Personne-clé",1]
[null,null,null,"M2"]
[null,null,null,"ST",null,null,"Personne-clé",1]
[null,null,null,"ST"]
[null,"P53\nMise en service,achèvement",null,"Pilote",null,null,"Personne-clé",1,null,null,null,null,null,null,null,null,null,null,null,null,null,null,null,null,null,null,null,null,null,null,null,null,null,null,null,null,null,null,null,null,null,null,null,null,null,null,null,null,null,null,null,null,null,null,null,null,null,null,null,null,null,null,null,null,null,null,null,null,null,null,null,null,null,null,null,null,null,null,null,null,null,null,null,null,null,null,{"$f":"SUM(L98:CH105)","v":0}]
[null,null,null,"Pilote"]
[null,null,null,"M1",null,null,"Personne-clé",1]
[null,null,null,"M1"]
[null,null,null,"M2",null,null,"Personne-clé",1]
[null,null,null,"M2"]
[null,null,null,"ST",null,null,"Personne-clé",1]
[null,null,null,"ST"]
[]
[null,null,null,null,null,null,null,null,null,"Sous-total heures Chef de projet",null,"Insérer la somme des heures dans cette cellule"]
[null,null,null,null,null,null,null,null,null,"Sous-total heures suppléant CP",null,"Insérer la somme des heures dans cette cellule"]
[null,null,null,null,null,null,null,null,null,"Sous-total heures Pilote",null,{"$f":"SUM(L25:CH26,L33:CH34,L41:CH42,L49:CH50,L57:CH58,L65:CH66,L73:CH74,L82:CH83,L90:CH91,L98:CH99)","v":0}]
[null,null,null,null,null,null,null,null,null,"Sous-total heures Membre 1",null,{"$f":"SUM(L27:CH28,L35:CH36,L43:CH44,L51:CH52,L59:CH60,L67:CH68,L75:CH76,L84:CH85,L92:CH93,L100:CH101)","v":0}]
[null,null,null,null,null,null,null,null,null,"Sous-total heures Membre 2",null,{"$f":"SUM(L29:CH30,L37:CH38,L45:CH46,L53:CH54,L61:CH62,L69:CH70,L77:CH78,L86:CH87,L94:CH95,L102:CH103)","v":0}]
[null,null,null,null,null,null,null,null,null,"Sous-total heures sous-traitant",null,{"$f":"SUM(L31:CH32,L39:CH40,L47:CH48,L55:CH56,L63:CH64,L71:CH72,L79:CH80,L88:CH89,L96:CH97,L104:CH105)","v":0}]
[null,null,null,"Total des heures prévues pour l'ensemble du mandat 2)",null,null,null,null,null,null,null,{"$f":"SUM(L109:CH112)","v":0},null,null,null,null,null,null,null,null,null,null,null,null,null,null,null,null,null,null,null,null,null,null,null,null,null,null,null,null,null,null,null,null,null,null,null,null,null,null,null,null,null,null,null,null,null,null,null,null,null,null,null,null,null,null,null,null,null,null,null,null,null,null,null,null,null,null,null,null,null,null,null,null,null,null,{"$f":"SUM(CI25:CI105)","v":0}]
[]
[null,"1)","utiliser les abréviations figurant sous F2"]
[null,"2)","doit correspondre au total général des heures, selon F11"]

{"sheet":"F21.2","index":6,"n_rows":116,"n_cols":87,"rows_kept":116,"cut":false,"hidden":false,"merged":[[5,1,5,10],[5,11,5,86],[3,1,3,10],[3,11,3,82],[3,83,3,85],[4,1,4,10],[4,11,4,82],[16,1,16,9],[6,1,6,85],[7,1,8,9],[7,10,8,10],[7,11,7,13],[7,14,7,25],[7,26,7,37],[7,38,7,49],[7,50,7,61],[7,62,7,73],[7,74,7,85],[10,1,10,9],[11,1,11,9],[12,1,12,9],[13,1,13,9],[14,1,14,9],[48,1,55,2],[48,86,55,86],[18,1,18,9],[19,1,19,9],[20,1,20,9],[22,1,22,2],[22,11,22,85],[24,1,31,2],[24,86,31,86],[32,1,39,2],[32,86,39,86],[40,1,47,2],[40,86,47,86],[56,1,63,2],[56,86,63,86],[64,1,71,2],[64,86,71,86],[72,1,79,2],[72,86,79,86],[81,1,88,2],[81,86,88,86],[89,1,96,2],[89,86,96,86],[97,1,104,2],[97,86,104,86],[112,1,112,2],[112,3,112,9],[112,11,112,85],[115,2,115,4],[106,11,106,85],[107,11,107,85],[108,11,108,85],[109,11,109,85],[110,11,110,85],[111,11,111,85]]}
[]
[null,null,null,null,null,null,null,null,null,null,null,null,null,null,null,null,null,null,null,null,null,null,null,null,null,null,null,null,null,null,null,null,null,null,null,null,null,null,null,null,null,null,null,null,null,null,null,null,null,null,null,null,null,null,null,null,null,null,null,null,null,null,null,null,null,null,null,null,null,null,null,null,null,null,null,null,null,null,null,null,null,null,null,null,null,null,"F21.1"]
[]
[null,{"$f":"NoRC","v":"RC"},null,null,null,null,null,null,null,null,null,"Organisation pour l'exécution du marché",null,null,null,null,null,null,null,null,null,null,null,null,null,null,null,null,null,null,null,null,null,null,null,null,null,null,null,null,null,null,null,null,null,null,null,null,null,null,null,null,null,null,null,null,null,null,null,null,null,null,null,null,null,null,null,null,null,null,null,null,null,null,null,null,null,null,null,null,null,null,null,"CPT",null,null,0.4]
[null,{"$f":"\"Mandat : \"&Mandat","v":"Mandat : CPXXXXX"},null,null,null,null,null,null,null,null,null,"Nombre, planification et disponibilité des moyens et des ressources ",null,null,null,null,null,null,null,null,null,null,null,null,null,null,null,null,null,null,null,null,null,null,null,null,null,null,null,null,null,null,null,null,null,null,null,null,null,null,null,null,null,null,null,null,null,null,null,null,null,null,null,null,null,null,null,null,null,null,null,null,null,null,null,null,null,null,null,null,null,null,null,null,null,null,0.25]
[null,{"$f":"DetailProjet","v":"Détail des prestations"},null,null,null,null,null,null,null,null,null,"Nombre d'heures nécessaires pour l'exécution du marché par collaborateur et par phase de prestations"]
[]
[null,"Planning des activités et des échéances",null,null,null,null,null,null,null,null,null,2018,null,null,2019,null,null,null,null,null,null,null,null,null,null,null,2020,null,null,null,null,null,null,null,null,null,null,null,2021,null,null,null,null,null,null,null,null,null,null,null,2022,null,null,null,null,null,null,null,null,null,null,null,2023,null,null,null,null,null,null,null,null,null,null,null,2024]
[null,null,null,null,null,null,null,null,null,null,null,10,11,12,1,2,3,4,5,6,7,8,9,10,11,12,1,2,3,4,5,6,7,8,9,10,11,12,1,2,3,4,5,6,7,8,9,10,11,12,1,2,3,4,5,6,7,8,9,10,11,12,1,2,3,4,5,6,7,8,9,10,11,12,1,2,3,4,5,6,7,8,9,10,11,12]
[null,"Phase 1"]
[null,"Reprise des études précédentes"]
[null,"Proposition et suivi d'investigation pour tunnel, route, ouvrages de soutènement et parois rocheuses"]
[null,"Avant-projet "]
[null,"Examen préalable"]
[null,"Projet de l'ouvrage"]
[null,"Enquête"]
[null,"Appel d'offres, comparaison des offres et proposition d'adjudication"]
[null,"Phase 2"]
[null,"Projet d'exécution"]
[null,"Exécution de l'ouvrage, gestion modifications et documentation ouvrages y. c. préparation du chantier"]
[null,"Mise en service, achèvement"]
[]
[null,null,null,"Société 1)","Nom, Prénom","Formation","Fonctions dans le projet","nb. coll.","cat. SIA","tarif horaire",null,null,null,null,null,null,null,null,null,null,null,null,null,null,null,null,null,null,null,null,null,null,null,null,null,null,null,null,null,null,null,null,null,null,null,null,null,null,null,null,null,null,null,null,null,null,null,null,null,null,null,null,null,null,null,null,null,null,null,null,null,null,null,null,null,null,null,null,null,null,null,null,null,null,null,null,"Total de la prestation"]
[null,"Phase 1"]
[null,"P10 \nReprises des études précédentes ou proposition et suivi d'investigation",null,"Pilote",null,null,"Personne-clé",1,null,null,null,null,null,null,null,null,null,null,null,null,null,null,null,null,null,null,null,null,null,null,null,null,null,null,null,null,null,null,null,null,null,null,null,null,null,null,null,null,null,null,null,null,null,null,null,null,null,null,null,null,null,null,null,null,null,null,null,null,null,null,null,null,null,null,null,null,null,null,null,null,null,null,null,null,null,null,{"$f":"SUM(L25:CH32)","v":0}]
[null,null,null,"Pilote"]
[null,null,null,"M1",null,null,"Personne-clé",1]
[null,null,null,"M1"]
[null,null,null,"M2",null,null,"Personne-clé",1]
[null,null,null,"M2"]
[null,null,null,"ST",null,null,"Personne-clé",1]
[null,null,null,"ST"]
[null,"P30\nProposition et suivi d'investigation pour tunnel, route, ouvrages de soutènement et parois rocheuses",null,"Pilote",null,null,"Personne-clé",1,null,null,null,null,null,null,null,null,null,null,null,null,null,null,null,null,null,null,null,null,null,null,null,null,null,null,null,null,null,null,null,null,null,null,null,null,null,null,null,null,null,null,null,null,null,null,null,null,null,null,null,null,null,null,null,null,null,null,null,null,null,null,null,null,null,null,null,null,null,null,null,null,null,null,null,null,null,null,{"$f":"SUM(L33:CH40)","v":0}]
[null,null,null,"Pilote"]
[null,null,null,"M1",null,null,"Personne-clé",1]
[null,null,null,"M1"]
[null,null,null,"M2",null,null,"Personne-clé",1]
[null,null,null,"M2"]
[null,null,null,"ST",null,null,"Personne-clé",1]
[null,null,null,"ST"]
[null,"P31\nAvant-projet",null,"Pilote",null,null,"Personne-clé",1,null,null,null,null,null,null,null,null,null,null,null,null,null,null,null,null,null,null,null,null,null,null,null,null,null,null,null,null,null,null,null,null,null,null,null,null,null,null,null,null,null,null,null,null,null,null,null,null,null,null,null,null,null,null,null,null,null,null,null,null,null,null,null,null,null,null,null,null,null,null,null,null,null,null,null,null,null,null,{"$f":"SUM(L41:CH48)","v":0}]
[null,null,null,"Pilote"]
[null,null,null,"M1",null,null,"Personne-clé",1]
[null,null,null,"M1"]
[null,null,null,"M2",null,null,"Personne-clé",1]
[null,null,null,"M2"]
[null,null,null,"ST",null,null,"Personne-clé",1]
[null,null,null,"ST"]
[null,"P31\nExamen préalable",null,"Pilote",null,null,"Personne-clé",1,null,null,null,null,null,null,null,null,null,null,null,null,null,null,null,null,null,null,null,null,null,null,null,null,null,null,null,null,null,null,null,null,null,null,null,null,null,null,null,null,null,null,null,null,null,null,null,null,null,null,null,null,null,null,null,null,null,null,null,null,null,null,null,null,null,null,null,null,null,null,null,null,null,null,null,null,null,null,{"$f":"SUM(L49:CH56)","v":0}]
[null,null,null,"Pilote"]
[null,null,null,"M1",null,null,"Personne-clé",1]
[null,null,null,"M1"]
[null,null,null,"M2",null,null,"Personne-clé",1]
[null,null,null,"M2"]
[null,null,null,"ST",null,null,"Personne-clé",1]
[null,null,null,"ST"]
[null,"P32\nProjet de l'ouvrage",null,"Pilote",null,null,"Personne-clé",1,null,null,null,null,null,null,null,null,null,null,null,null,null,null,null,null,null,null,null,null,null,null,null,null,null,null,null,null,null,null,null,null,null,null,null,null,null,null,null,null,null,null,null,null,null,null,null,null,null,null,null,null,null,null,null,null,null,null,null,null,null,null,null,null,null,null,null,null,null,null,null,null,null,null,null,null,null,null,{"$f":"SUM(L57:CH64)","v":0}]
[null,null,null,"Pilote"]
[null,null,null,"M1",null,null,"Personne-clé",1]
[null,null,null,"M1"]
[null,null,null,"M2",null,null,"Personne-clé",1]
[null,null,null,"M2"]
[null,null,null,"ST",null,null,"Personne-clé",1]
[null,null,null,"ST"]
[null,"P33\nEnquête",null,"Pilote",null,null,"Personne-clé",1,null,null,null,null,null,null,null,null,null,null,null,null,null,null,null,null,null,null,null,null,null,null,null,null,null,null,null,null,null,null,null,null,null,null,null,null,null,null,null,null,null,null,null,null,null,null,null,null,null,null,null,null,null,null,null,null,null,null,null,null,null,null,null,null,null,null,null,null,null,null,null,null,null,null,null,null,null,null,{"$f":"SUM(L65:CH72)","v":0}]
[null,null,null,"Pilote"]
[null,null,null,"M1",null,null,"Personne-clé",1]
[null,null,null,"M1"]
[null,null,null,"M2",null,null,"Personne-clé",1]
[null,null,null,"M2"]
[null,null,null,"ST",null,null,"Personne-clé",1]
[null,null,null,"ST"]
[null,"P41\nAppel d'offres, comparaison des offres et proposition d'adjudication",null,"Pilote",null,null,"Personne-clé",1,null,null,null,null,null,null,null,null,null,null,null,null,null,null,null,null,null,null,null,null,null,null,null,null,null,null,null,null,null,null,null,null,null,null,null,null,null,null,null,null,null,null,null,null,null,null,null,null,null,null,null,null,null,null,null,null,null,null,null,null,null,null,null,null,null,null,null,null,null,null,null,null,null,null,null,null,null,null,{"$f":"SUM(L73:CH80)","v":0}]
[null,null,null,"Pilote"]
[null,null,null,"M1",null,null,"Personne-clé",1]
[null,null,null,"M1"]
[null,null,null,"M2",null,null,"Personne-clé",1]
[null,null,null,"M2"]
[null,null,null,"ST",null,null,"Personne-clé",1]
[15,null,null,"ST"]
[null,"Phase 2"]
[null,"P51\nProjet d'exécution",null,"Pilote",null,null,"Personne-clé",1,null,null,null,null,null,null,null,null,null,null,null,null,null,null,null,null,null,null,null,null,null,null,null,null,null,null,null,null,null,null,null,null,null,null,null,null,null,null,null,null,null,null,null,null,null,null,null,null,null,null,null,null,null,null,null,null,null,null,null,null,null,null,null,null,null,null,null,null,null,null,null,null,null,null,null,null,null,null,{"$f":"SUM(L82:CH89)","v":0}]
[null,null,null,"Pilote"]
[null,null,null,"M1",null,null,"Personne-clé",1]
[null,null,null,"M1"]
[null,null,null,"M2",null,null,"Personne-clé",1]
[null,null,null,"M2"]
[null,null,null,"ST",null,null,"Personne-clé",1]
[null,null,null,"ST"]
[null,"P52\nExécution de l'ouvrage, gestion modifications et documentation ouvrages",null,"Pilote",null,null,"Personne-clé",1,null,null,null,null,null,null,null,null,null,null,null,null,null,null,null,null,null,null,null,null,null,null,null,null,null,null,null,null,null,null,null,null,null,null,null,null,null,null,null,null,null,null,null,null,null,null,null,null,null,null,null,null,null,null,null,null,null,null,null,null,null,null,null,null,null,null,null,null,null,null,null,null,null,null,null,null,null,null,{"$f":"SUM(L90:CH97)","v":0}]
[null,null,null,"Pilote"]
[null,null,null,"M1",null,null,"Personne-clé",1]
[null,null,null,"M1"]
[null,null,null,"M2",null,null,"Personne-clé",1]
[null,null,null,"M2"]
[null,null,null,"ST",null,null,"Personne-clé",1]
[null,null,null,"ST"]
[null,"P53\nMise en service,achèvement",null,"Pilote",null,null,"Personne-clé",1,null,null,null,null,null,null,null,null,null,null,null,null,null,null,null,null,null,null,null,null,null,null,null,null,null,null,null,null,null,null,null,null,null,null,null,null,null,null,null,null,null,null,null,null,null,null,null,null,null,null,null,null,null,null,null,null,null,null,null,null,null,null,null,null,null,null,null,null,null,null,null,null,null,null,null,null,null,null,{"$f":"SUM(L98:CH105)","v":0}]
[null,null,null,"Pilote"]
[null,null,null,"M1",null,null,"Personne-clé",1]
[null,null,null,"M1"]
[null,null,null,"M2",null,null,"Personne-clé",1]
[null,null,null,"M2"]
[null,null,null,"ST",null,null,"Personne-clé",1]
[null,null,null,"ST"]
[]
[null,null,null,null,null,null,null,null,null,"Sous-total heures Chef de projet",null,"Insérer la somme des heures dans cette cellule"]
[null,null,null,null,null,null,null,null,null,"Sous-total heures suppléant CP",null,"Insérer la somme des heures dans cette cellule"]
[null,null,null,null,null,null,null,null,null,"Sous-total heures Pilote",null,{"$f":"SUM(L25:CH26,L33:CH34,L41:CH42,L49:CH50,L57:CH58,L65:CH66,L73:CH74,L82:CH83,L90:CH91,L98:CH99)","v":0}]
[null,null,null,null,null,null,null,null,null,"Sous-total heures Membre 1",null,{"$f":"SUM(L27:CH28,L35:CH36,L43:CH44,L51:CH52,L59:CH60,L67:CH68,L75:CH76,L84:CH85,L92:CH93,L100:CH101)","v":0}]
[null,null,null,null,null,null,null,null,null,"Sous-total heures Membre 2",null,{"$f":"SUM(L29:CH30,L37:CH38,L45:CH46,L53:CH54,L61:CH62,L69:CH70,L77:CH78,L86:CH87,L94:CH95,L102:CH103)","v":0}]
[null,null,null,null,null,null,null,null,null,"Sous-total heures sous-traitant",null,{"$f":"SUM(L31:CH32,L39:CH40,L47:CH48,L55:CH56,L63:CH64,L71:CH72,L79:CH80,L88:CH89,L96:CH97,L104:CH105)","v":0}]
[null,null,null,"Total des heures prévues pour l'ensemble du mandat 2)",null,null,null,null,null,null,null,{"$f":"SUM(L109:CH112)","v":0},null,null,null,null,null,null,null,null,null,null,null,null,null,null,null,null,null,null,null,null,null,null,null,null,null,null,null,null,null,null,null,null,null,null,null,null,null,null,null,null,null,null,null,null,null,null,null,null,null,null,null,null,null,null,null,null,null,null,null,null,null,null,null,null,null,null,null,null,null,null,null,null,null,null,{"$f":"SUM(CI25:CI105)","v":0}]
[]
[null,"1)","utiliser les abréviations figurant sous F2"]
[null,"2)","doit correspondre au total général des heures, selon F11"]

{"sheet":"F21.3","index":7,"n_rows":116,"n_cols":87,"rows_kept":116,"cut":false,"hidden":false,"merged":[[5,1,5,10],[5,11,5,86],[3,1,3,10],[3,11,3,82],[3,83,3,85],[4,1,4,10],[4,11,4,82],[16,1,16,9],[6,1,6,85],[7,1,8,9],[7,10,8,10],[7,11,7,13],[7,14,7,25],[7,26,7,37],[7,38,7,49],[7,50,7,61],[7,62,7,73],[7,74,7,85],[10,1,10,9],[11,1,11,9],[12,1,12,9],[13,1,13,9],[14,1,14,9],[48,1,55,2],[48,86,55,86],[18,1,18,9],[19,1,19,9],[20,1,20,9],[22,1,22,2],[22,11,22,85],[24,1,31,2],[24,86,31,86],[32,1,39,2],[32,86,39,86],[40,1,47,2],[40,86,47,86],[56,1,63,2],[56,86,63,86],[64,1,71,2],[64,86,71,86],[72,1,79,2],[72,86,79,86],[81,1,88,2],[81,86,88,86],[89,1,96,2],[89,86,96,86],[97,1,104,2],[97,86,104,86],[112,1,112,2],[112,3,112,9],[112,11,112,85],[115,2,115,4],[106,11,106,85],[107,11,107,85],[108,11,108,85],[109,11,109,85],[110,11,110,85],[111,11,111,85]]}
[]
[null,null,null,null,null,null,null,null,null,null,null,null,null,null,null,null,null,null,null,null,null,null,null,null,null,null,null,null,null,null,null,null,null,null,null,null,null,null,null,null,null,null,null,null,null,null,null,null,null,null,null,null,null,null,null,null,null,null,null,null,null,null,null,null,null,null,null,null,null,null,null,null,null,null,null,null,null,null,null,null,null,null,null,null,null,null,"F21.1"]
[]
[null,{"$f":"NoRC","v":"RC"},null,null,null,null,null,null,null,null,null,"Organisation pour l'exécution du marché",null,null,null,null,null,null,null,null,null,null,null,null,null,null,null,null,null,null,null,null,null,null,null,null,null,null,null,null,null,null,null,null,null,null,null,null,null,null,null,null,null,null,null,null,null,null,null,null,null,null,null,null,null,null,null,null,null,null,null,null,null,null,null,null,null,null,null,null,null,null,null,"CPT",null,null,0.4]
[null,{"$f":"\"Mandat : \"&Mandat","v":"Mandat : CPXXXXX"},null,null,null,null,null,null,null,null,null,"Nombre, planification et disponibilité des moyens et des ressources ",null,null,null,null,null,null,null,null,null,null,null,null,null,null,null,null,null,null,null,null,null,null,null,null,null,null,null,null,null,null,null,null,null,null,null,null,null,null,null,null,null,null,null,null,null,null,null,null,null,null,null,null,null,null,null,null,null,null,null,null,null,null,null,null,null,null,null,null,null,null,null,null,null,null,0.25]
[null,{"$f":"DetailProjet","v":"Détail des prestations"},null,null,null,null,null,null,null,null,null,"Nombre d'heures nécessaires pour l'exécution du marché par collaborateur et par phase de prestations"]
[]
[null,"Planning des activités et des échéances",null,null,null,null,null,null,null,null,null,2018,null,null,2019,null,null,null,null,null,null,null,null,null,null,null,2020,null,null,null,null,null,null,null,null,null,null,null,2021,null,null,null,null,null,null,null,null,null,null,null,2022,null,null,null,null,null,null,null,null,null,null,null,2023,null,null,null,null,null,null,null,null,null,null,null,2024]
[null,null,null,null,null,null,null,null,null,null,null,10,11,12,1,2,3,4,5,6,7,8,9,10,11,12,1,2,3,4,5,6,7,8,9,10,11,12,1,2,3,4,5,6,7,8,9,10,11,12,1,2,3,4,5,6,7,8,9,10,11,12,1,2,3,4,5,6,7,8,9,10,11,12,1,2,3,4,5,6,7,8,9,10,11,12]
[null,"Phase 1"]
[null,"Reprise des études précédentes"]
[null,"Proposition et suivi d'investigation pour tunnel, route, ouvrages de soutènement et parois rocheuses"]
[null,"Avant-projet "]
[null,"Examen préalable"]
[null,"Projet de l'ouvrage"]
[null,"Enquête"]
[null,"Appel d'offres, comparaison des offres et proposition d'adjudication"]
[null,"Phase 2"]
[null,"Projet d'exécution"]
[null,"Exécution de l'ouvrage, gestion modifications et documentation ouvrages y. c. préparation du chantier"]
[null,"Mise en service, achèvement"]
[]
[null,null,null,"Société 1)","Nom, Prénom","Formation","Fonctions dans le projet","nb. coll.","cat. SIA","tarif horaire",null,null,null,null,null,null,null,null,null,null,null,null,null,null,null,null,null,null,null,null,null,null,null,null,null,null,null,null,null,null,null,null,null,null,null,null,null,null,null,null,null,null,null,null,null,null,null,null,null,null,null,null,null,null,null,null,null,null,null,null,null,null,null,null,null,null,null,null,null,null,null,null,null,null,null,null,"Total de la prestation"]
[null,"Phase 1"]
[null,"P10 \nReprises des études précédentes ou proposition et suivi d'investigation",null,"Pilote",null,null,"Personne-clé",1,null,null,null,null,null,null,null,null,null,null,null,null,null,null,null,null,null,null,null,null,null,null,null,null,null,null,null,null,null,null,null,null,null,null,null,null,null,null,null,null,null,null,null,null,null,null,null,null,null,null,null,null,null,null,null,null,null,null,null,null,null,null,null,null,null,null,null,null,null,null,null,null,null,null,null,null,null,null,{"$f":"SUM(L25:CH32)","v":0}]
[null,null,null,"Pilote"]
[null,null,null,"M1",null,null,"Personne-clé",1]
[null,null,null,"M1"]
[null,null,null,"M2",null,null,"Personne-clé",1]
[null,null,null,"M2"]
[null,null,null,"ST",null,null,"Personne-clé",1]
[null,null,null,"ST"]
[null,"P30\nProposition et suivi d'investigation pour tunnel, route, ouvrages de soutènement et parois rocheuses",null,"Pilote",null,null,"Personne-clé",1,null,null,null,null,null,null,null,null,null,null,null,null,null,null,null,null,null,null,null,null,null,null,null,null,null,null,null,null,null,null,null,null,null,null,null,null,null,null,null,null,null,null,null,null,null,null,null,null,null,null,null,null,null,null,null,null,null,null,null,null,null,null,null,null,null,null,null,null,null,null,null,null,null,null,null,null,null,null,{"$f":"SUM(L33:CH40)","v":0}]
[null,null,null,"Pilote"]
[null,null,null,"M1",null,null,"Personne-clé",1]
[null,null,null,"M1"]
[null,null,null,"M2",null,null,"Personne-clé",1]
[null,null,null,"M2"]
[null,null,null,"ST",null,null,"Personne-clé",1]
[null,null,null,"ST"]
[null,"P31\nAvant-projet",null,"Pilote",null,null,"Personne-clé",1,null,null,null,null,null,null,null,null,null,null,null,null,null,null,null,null,null,null,null,null,null,null,null,null,null,null,null,null,null,null,null,null,null,null,null,null,null,null,null,null,null,null,null,null,null,null,null,null,null,null,null,null,null,null,null,null,null,null,null,null,null,null,null,null,null,null,null,null,null,null,null,null,null,null,null,null,null,null,{"$f":"SUM(L41:CH48)","v":0}]
[null,null,null,"Pilote"]
[null,null,null,"M1",null,null,"Personne-clé",1]
[null,null,null,"M1"]
[null,null,null,"M2",null,null,"Personne-clé",1]
[null,null,null,"M2"]
[null,null,null,"ST",null,null,"Personne-clé",1]
[null,null,null,"ST"]
[null,"P31\nExamen préalable",null,"Pilote",null,null,"Personne-clé",1,null,null,null,null,null,null,null,null,null,null,null,null,null,null,null,null,null,null,null,null,null,null,null,null,null,null,null,null,null,null,null,null,null,null,null,null,null,null,null,null,null,null,null,null,null,null,null,null,null,null,null,null,null,null,null,null,null,null,null,null,null,null,null,null,null,null,null,null,null,null,null,null,null,null,null,null,null,null,{"$f":"SUM(L49:CH56)","v":0}]
[null,null,null,"Pilote"]
[null,null,null,"M1",null,null,"Personne-clé",1]
[null,null,null,"M1"]
[null,null,null,"M2",null,null,"Personne-clé",1]
[null,null,null,"M2"]
[null,null,null,"ST",null,null,"Personne-clé",1]
[null,null,null,"ST"]
[null,"P32\nProjet de l'ouvrage",null,"Pilote",null,null,"Personne-clé",1,null,null,null,null,null,null,null,null,null,null,null,null,null,null,null,null,null,null,null,null,null,null,null,null,null,null,null,null,null,null,null,null,null,null,null,null,null,null,null,null,null,null,null,null,null,null,null,null,null,null,null,null,null,null,null,null,null,null,null,null,null,null,null,null,null,null,null,null,null,null,null,null,null,null,null,null,null,null,{"$f":"SUM(L57:CH64)","v":0}]
[null,null,null,"Pilote"]
[null,null,null,"M1",null,null,"Personne-clé",1]
[null,null,null,"M1"]
[null,null,null,"M2",null,null,"Personne-clé",1]
[null,null,null,"M2"]
[null,null,null,"ST",null,null,"Personne-clé",1]
[null,null,null,"ST"]
[null,"P33\nEnquête",null,"Pilote",null,null,"Personne-clé",1,null,null,null,null,null,null,null,null,null,null,null,null,null,null,null,null,null,null,null,null,null,null,null,null,null,null,null,null,null,null,null,null,null,null,null,null,null,null,null,null,null,null,null,null,null,null,null,null,null,null,null,null,null,null,null,null,null,null,null,null,null,null,null,null,null,null,null,null,null,null,null,null,null,null,null,null,null,null,{"$f":"SUM(L65:CH72)","v":0}]
[null,null,null,"Pilote"]
[null,null,null,"M1",null,null,"Personne-clé",1]
[null,null,null,"M1"]
[null,null,null,"M2",null,null,"Personne-clé",1]
[null,null,null,"M2"]
[null,null,null,"ST",null,null,"Personne-clé",1]
[null,null,null,"ST"]
[null,"P41\nAppel d'offres, comparaison des offres et proposition d'adjudication",null,"Pilote",null,null,"Personne-clé",1,null,null,null,null,null,null,null,null,null,null,null,null,null,null,null,null,null,null,null,null,null,null,null,null,null,null,null,null,null,null,null,null,null,null,null,null,null,null,null,null,null,null,null,null,null,null,null,null,null,null,null,null,null,null,null,null,null,null,null,null,null,null,null,null,null,null,null,null,null,null,null,null,null,null,null,null,null,null,{"$f":"SUM(L73:CH80)","v":0}]
[null,null,null,"Pilote"]
[null,null,null,"M1",null,null,"Personne-clé",1]
[null,null,null,"M1"]
[null,null,null,"M2",null,null,"Personne-clé",1]
[null,null,null,"M2"]
[null,null,null,"ST",null,null,"Personne-clé",1]
[15,null,null,"ST"]
[null,"Phase 2"]
[null,"P51\nProjet d'exécution",null,"Pilote",null,null,"Personne-clé",1,null,null,null,null,null,null,null,null,null,null,null,null,null,null,null,null,null,null,null,null,null,null,null,null,null,null,null,null,null,null,null,null,null,null,null,null,null,null,null,null,null,null,null,null,null,null,null,null,null,null,null,null,null,null,null,null,null,null,null,null,null,null,null,null,null,null,null,null,null,null,null,null,null,null,null,null,null,null,{"$f":"SUM(L82:CH89)","v":0}]
[null,null,null,"Pilote"]
[null,null,null,"M1",null,null,"Personne-clé",1]
[null,null,null,"M1"]
[null,null,null,"M2",null,null,"Personne-clé",1]
[null,null,null,"M2"]
[null,null,null,"ST",null,null,"Personne-clé",1]
[null,null,null,"ST"]
[null,"P52\nExécution de l'ouvrage, gestion modifications et documentation ouvrages",null,"Pilote",null,null,"Personne-clé",1,null,null,null,null,null,null,null,null,null,null,null,null,null,null,null,null,null,null,null,null,null,null,null,null,null,null,null,null,null,null,null,null,null,null,null,null,null,null,null,null,null,null,null,null,null,null,null,null,null,null,null,null,null,null,null,null,null,null,null,null,null,null,null,null,null,null,null,null,null,null,null,null,null,null,null,null,null,null,{"$f":"SUM(L90:CH97)","v":0}]
[null,null,null,"Pilote"]
[null,null,null,"M1",null,null,"Personne-clé",1]
[null,null,null,"M1"]
[null,null,null,"M2",null,null,"Personne-clé",1]
[null,null,null,"M2"]
[null,null,null,"ST",null,null,"Personne-clé",1]
[null,null,null,"ST"]
[null,"P53\nMise en service,achèvement",null,"Pilote",null,null,"Personne-clé",1,null,null,null,null,null,null,null,null,null,null,null,null,null,null,null,null,null,null,null,null,null,null,null,null,null,null,null,null,null,null,null,null,null,null,null,null,null,null,null,null,null,null,null,null,null,null,null,null,null,null,null,null,null,null,null,null,null,null,null,null,null,null,null,null,null,null,null,null,null,null,null,null,null,null,null,null,null,null,{"$f":"SUM(L98:CH105)","v":0}]
[null,null,null,"Pilote"]
[null,null,null,"M1",null,null,"Personne-clé",1]
[null,null,null,"M1"]
[null,null,null,"M2",null,null,"Personne-clé",1]
[null,null,null,"M2"]
[null,null,null,"ST",null,null,"Personne-clé",1]
[null,null,null,"ST"]
[]
[null,null,null,null,null,null,null,null,null,"Sous-total heures Chef de projet",null,"Insérer la somme des heures dans cette cellule"]
[null,null,null,null,null,null,null,null,null,"Sous-total heures suppléant CP",null,"Insérer la somme des heures dans cette cellule"]
[null,null,null,null,null,null,null,null,null,"Sous-total heures Pilote",null,{"$f":"SUM(L25:CH26,L33:CH34,L41:CH42,L49:CH50,L57:CH58,L65:CH66,L73:CH74,L82:CH83,L90:CH91,L98:CH99)","v":0}]
[null,null,null,null,null,null,null,null,null,"Sous-total heures Membre 1",null,{"$f":"SUM(L27:CH28,L35:CH36,L43:CH44,L51:CH52,L59:CH60,L67:CH68,L75:CH76,L84:CH85,L92:CH93,L100:CH101)","v":0}]
[null,null,null,null,null,null,null,null,null,"Sous-total heures Membre 2",null,{"$f":"SUM(L29:CH30,L37:CH38,L45:CH46,L53:CH54,L61:CH62,L69:CH70,L77:CH78,L86:CH87,L94:CH95,L102:CH103)","v":0}]
[null,null,null,null,null,null,null,null,null,"Sous-total heures sous-traitant",null,{"$f":"SUM(L31:CH32,L39:CH40,L47:CH48,L55:CH56,L63:CH64,L71:CH72,L79:CH80,L88:CH89,L96:CH97,L104:CH105)","v":0}]
[null,null,null,"Total des heures prévues pour l'ensemble du mandat 2)",null,null,null,null,null,null,null,{"$f":"SUM(L109:CH112)","v":0},null,null,null,null,null,null,null,null,null,null,null,null,null,null,null,null,null,null,null,null,null,null,null,null,null,null,null,null,null,null,null,null,null,null,null,null,null,null,null,null,null,null,null,null,null,null,null,null,null,null,null,null,null,null,null,null,null,null,null,null,null,null,null,null,null,null,null,null,null,null,null,null,null,null,{"$f":"SUM(CI25:CI105)","v":0}]
[]
[null,"1)","utiliser les abréviations figurant sous F2"]
[null,"2)","doit correspondre au total général des heures, selon F11"]

{"sheet":"F21.4","index":8,"n_rows":116,"n_cols":87,"rows_kept":116,"cut":false,"hidden":false,"merged":[[5,1,5,10],[5,11,5,86],[3,1,3,10],[3,11,3,82],[3,83,3,85],[4,1,4,10],[4,11,4,82],[16,1,16,9],[6,1,6,85],[7,1,8,9],[7,10,8,10],[7,11,7,13],[7,14,7,25],[7,26,7,37],[7,38,7,49],[7,50,7,61],[7,62,7,73],[7,74,7,85],[10,1,10,9],[11,1,11,9],[12,1,12,9],[13,1,13,9],[14,1,14,9],[48,1,55,2],[48,86,55,86],[18,1,18,9],[19,1,19,9],[20,1,20,9],[22,1,22,2],[22,11,22,85],[24,1,31,2],[24,86,31,86],[32,1,39,2],[32,86,39,86],[40,1,47,2],[40,86,47,86],[56,1,63,2],[56,86,63,86],[64,1,71,2],[64,86,71,86],[72,1,79,2],[72,86,79,86],[81,1,88,2],[81,86,88,86],[89,1,96,2],[89,86,96,86],[97,1,104,2],[97,86,104,86],[112,1,112,2],[112,3,112,9],[112,11,112,85],[115,2,115,4],[106,11,106,85],[107,11,107,85],[108,11,108,85],[109,11,109,85],[110,11,110,85],[111,11,111,85]]}
[]
[null,null,null,null,null,null,null,null,null,null,null,null,null,null,null,null,null,null,null,null,null,null,null,null,null,null,null,null,null,null,null,null,null,null,null,null,null,null,null,null,null,null,null,null,null,null,null,null,null,null,null,null,null,null,null,null,null,null,null,null,null,null,null,null,null,null,null,null,null,null,null,null,null,null,null,null,null,null,null,null,null,null,null,null,null,null,"F21.1"]
[]
[null,{"$f":"NoRC","v":"RC"},null,null,null,null,null,null,null,null,null,"Organisation pour l'exécution du marché",null,null,null,null,null,null,null,null,null,null,null,null,null,null,null,null,null,null,null,null,null,null,null,null,null,null,null,null,null,null,null,null,null,null,null,null,null,null,null,null,null,null,null,null,null,null,null,null,null,null,null,null,null,null,null,null,null,null,null,null,null,null,null,null,null,null,null,null,null,null,null,"CPT",null,null,0.4]
[null,{"$f":"\"Mandat : \"&Mandat","v":"Mandat : CPXXXXX"},null,null,null,null,null,null,null,null,null,"Nombre, planification et disponibilité des moyens et des ressources ",null,null,null,null,null,null,null,null,null,null,null,null,null,null,null,null,null,null,null,null,null,null,null,null,null,null,null,null,null,null,null,null,null,null,null,null,null,null,null,null,null,null,null,null,null,null,null,null,null,null,null,null,null,null,null,null,null,null,null,null,null,null,null,null,null,null,null,null,null,null,null,null,null,null,0.25]
[null,{"$f":"DetailProjet","v":"Détail des prestations"},null,null,null,null,null,null,null,null,null,"Nombre d'heures nécessaires pour l'exécution du marché par collaborateur et par phase de prestations"]
[]
[null,"Planning des activités et des échéances",null,null,null,null,null,null,null,null,null,2018,null,null,2019,null,null,null,null,null,null,null,null,null,null,null,2020,null,null,null,null,null,null,null,null,null,null,null,2021,null,null,null,null,null,null,null,null,null,null,null,2022,null,null,null,null,null,null,null,null,null,null,null,2023,null,null,null,null,null,null,null,null,null,null,null,2024]
[null,null,null,null,null,null,null,null,null,null,null,10,11,12,1,2,3,4,5,6,7,8,9,10,11,12,1,2,3,4,5,6,7,8,9,10,11,12,1,2,3,4,5,6,7,8,9,10,11,12,1,2,3,4,5,6,7,8,9,10,11,12,1,2,3,4,5,6,7,8,9,10,11,12,1,2,3,4,5,6,7,8,9,10,11,12]
[null,"Phase 1"]
[null,"Reprise des études précédentes"]
[null,"Proposition et suivi d'investigation pour tunnel, route, ouvrages de soutènement et parois rocheuses"]
[null,"Avant-projet "]
[null,"Examen préalable"]
[null,"Projet de l'ouvrage"]
[null,"Enquête"]
[null,"Appel d'offres, comparaison des offres et proposition d'adjudication"]
[null,"Phase 2"]
[null,"Projet d'exécution"]
[null,"Exécution de l'ouvrage, gestion modifications et documentation ouvrages y. c. préparation du chantier"]
[null,"Mise en service, achèvement"]
[]
[null,null,null,"Société 1)","Nom, Prénom","Formation","Fonctions dans le projet","nb. coll.","cat. SIA","tarif horaire",null,null,null,null,null,null,null,null,null,null,null,null,null,null,null,null,null,null,null,null,null,null,null,null,null,null,null,null,null,null,null,null,null,null,null,null,null,null,null,null,null,null,null,null,null,null,null,null,null,null,null,null,null,null,null,null,null,null,null,null,null,null,null,null,null,null,null,null,null,null,null,null,null,null,null,null,"Total de la prestation"]
[null,"Phase 1"]
[null,"P10 \nReprises des études précédentes ou proposition et suivi d'investigation",null,"Pilote",null,null,"Personne-clé",1,null,null,null,null,null,null,null,null,null,null,null,null,null,null,null,null,null,null,null,null,null,null,null,null,null,null,null,null,null,null,null,null,null,null,null,null,null,null,null,null,null,null,null,null,null,null,null,null,null,null,null,null,null,null,null,null,null,null,null,null,null,null,null,null,null,null,null,null,null,null,null,null,null,null,null,null,null,null,{"$f":"SUM(L25:CH32)","v":0}]
[null,null,null,"Pilote"]
[null,null,null,"M1",null,null,"Personne-clé",1]
[null,null,null,"M1"]
[null,null,null,"M2",null,null,"Personne-clé",1]
[null,null,null,"M2"]
[null,null,null,"ST",null,null,"Personne-clé",1]
[null,null,null,"ST"]
[null,"P30\nProposition et suivi d'investigation pour tunnel, route, ouvrages de soutènement et parois rocheuses",null,"Pilote",null,null,"Personne-clé",1,null,null,null,null,null,null,null,null,null,null,null,null,null,null,null,null,null,null,null,null,null,null,null,null,null,null,null,null,null,null,null,null,null,null,null,null,null,null,null,null,null,null,null,null,null,null,null,null,null,null,null,null,null,null,null,null,null,null,null,null,null,null,null,null,null,null,null,null,null,null,null,null,null,null,null,null,null,null,{"$f":"SUM(L33:CH40)","v":0}]
[null,null,null,"Pilote"]
[null,null,null,"M1",null,null,"Personne-clé",1]
[null,null,null,"M1"]
[null,null,null,"M2",null,null,"Personne-clé",1]
[null,null,null,"M2"]
[null,null,null,"ST",null,null,"Personne-clé",1]
[null,null,null,"ST"]
[null,"P31\nAvant-projet",null,"Pilote",null,null,"Personne-clé",1,null,null,null,null,null,null,null,null,null,null,null,null,null,null,null,null,null,null,null,null,null,null,null,null,null,null,null,null,null,null,null,null,null,null,null,null,null,null,null,null,null,null,null,null,null,null,null,null,null,null,null,null,null,null,null,null,null,null,null,null,null,null,null,null,null,null,null,null,null,null,null,null,null,null,null,null,null,null,{"$f":"SUM(L41:CH48)","v":0}]
[null,null,null,"Pilote"]
[null,null,null,"M1",null,null,"Personne-clé",1]
[null,null,null,"M1"]
[null,null,null,"M2",null,null,"Personne-clé",1]
[null,null,null,"M2"]
[null,null,null,"ST",null,null,"Personne-clé",1]
[null,null,null,"ST"]
[null,"P31\nExamen préalable",null,"Pilote",null,null,"Personne-clé",1,null,null,null,null,null,null,null,null,null,null,null,null,null,null,null,null,null,null,null,null,null,null,null,null,null,null,null,null,null,null,null,null,null,null,null,null,null,null,null,null,null,null,null,null,null,null,null,null,null,null,null,null,null,null,null,null,null,null,null,null,null,null,null,null,null,null,null,null,null,null,null,null,null,null,null,null,null,null,{"$f":"SUM(L49:CH56)","v":0}]
[null,null,null,"Pilote"]
[null,null,null,"M1",null,null,"Personne-clé",1]
[null,null,null,"M1"]
[null,null,null,"M2",null,null,"Personne-clé",1]
[null,null,null,"M2"]
[null,null,null,"ST",null,null,"Personne-clé",1]
[null,null,null,"ST"]
[null,"P32\nProjet de l'ouvrage",null,"Pilote",null,null,"Personne-clé",1,null,null,null,null,null,null,null,null,null,null,null,null,null,null,null,null,null,null,null,null,null,null,null,null,null,null,null,null,null,null,null,null,null,null,null,null,null,null,null,null,null,null,null,null,null,null,null,null,null,null,null,null,null,null,null,null,null,null,null,null,null,null,null,null,null,null,null,null,null,null,null,null,null,null,null,null,null,null,{"$f":"SUM(L57:CH64)","v":0}]
[null,null,null,"Pilote"]
[null,null,null,"M1",null,null,"Personne-clé",1]
[null,null,null,"M1"]
[null,null,null,"M2",null,null,"Personne-clé",1]
[null,null,null,"M2"]
[null,null,null,"ST",null,null,"Personne-clé",1]
[null,null,null,"ST"]
[null,"P33\nEnquête",null,"Pilote",null,null,"Personne-clé",1,null,null,null,null,null,null,null,null,null,null,null,null,null,null,null,null,null,null,null,null,null,null,null,null,null,null,null,null,null,null,null,null,null,null,null,null,null,null,null,null,null,null,null,null,null,null,null,null,null,null,null,null,null,null,null,null,null,null,null,null,null,null,null,null,null,null,null,null,null,null,null,null,null,null,null,null,null,null,{"$f":"SUM(L65:CH72)","v":0}]
[null,null,null,"Pilote"]
[null,null,null,"M1",null,null,"Personne-clé",1]
[null,null,null,"M1"]
[null,null,null,"M2",null,null,"Personne-clé",1]
[null,null,null,"M2"]
[null,null,null,"ST",null,null,"Personne-clé",1]
[null,null,null,"ST"]
[null,"P41\nAppel d'offres, comparaison des offres et proposition d'adjudication",null,"Pilote",null,null,"Personne-clé",1,null,null,null,null,null,null,null,null,null,null,null,null,null,null,null,null,null,null,null,null,null,null,null,null,null,null,null,null,null,null,null,null,null,null,null,null,null,null,null,null,null,null,null,null,null,null,null,null,null,null,null,null,null,null,null,null,null,null,null,null,null,null,null,null,null,null,null,null,null,null,null,null,null,null,null,null,null,null,{"$f":"SUM(L73:CH80)","v":0}]
[null,null,null,"Pilote"]
[null,null,null,"M1",null,null,"Personne-clé",1]
[null,null,null,"M1"]
[null,null,null,"M2",null,null,"Personne-clé",1]
[null,null,null,"M2"]
[null,null,null,"ST",null,null,"Personne-clé",1]
[15,null,null,"ST"]
[null,"Phase 2"]
[null,"P51\nProjet d'exécution",null,"Pilote",null,null,"Personne-clé",1,null,null,null,null,null,null,null,null,null,null,null,null,null,null,null,null,null,null,null,null,null,null,null,null,null,null,null,null,null,null,null,null,null,null,null,null,null,null,null,null,null,null,null,null,null,null,null,null,null,null,null,null,null,null,null,null,null,null,null,null,null,null,null,null,null,null,null,null,null,null,null,null,null,null,null,null,null,null,{"$f":"SUM(L82:CH89)","v":0}]
[null,null,null,"Pilote"]
[null,null,null,"M1",null,null,"Personne-clé",1]
[null,null,null,"M1"]
[null,null,null,"M2",null,null,"Personne-clé",1]
[null,null,null,"M2"]
[null,null,null,"ST",null,null,"Personne-clé",1]
[null,null,null,"ST"]
[null,"P52\nExécution de l'ouvrage, gestion modifications et documentation ouvrages",null,"Pilote",null,null,"Personne-clé",1,null,null,null,null,null,null,null,null,null,null,null,null,null,null,null,null,null,null,null,null,null,null,null,null,null,null,null,null,null,null,null,null,null,null,null,null,null,null,null,null,null,null,null,null,null,null,null,null,null,null,null,null,null,null,null,null,null,null,null,null,null,null,null,null,null,null,null,null,null,null,null,null,null,null,null,null,null,null,{"$f":"SUM(L90:CH97)","v":0}]
[null,null,null,"Pilote"]
[null,null,null,"M1",null,null,"Personne-clé",1]
[null,null,null,"M1"]
[null,null,null,"M2",null,null,"Personne-clé",1]
[null,null,null,"M2"]
[null,null,null,"ST",null,null,"Personne-clé",1]
[null,null,null,"ST"]
[null,"P53\nMise en service,achèvement",null,"Pilote",null,null,"Personne-clé",1,null,null,null,null,null,null,null,null,null,null,null,null,null,null,null,null,null,null,null,null,null,null,null,null,null,null,null,null,null,null,null,null,null,null,null,null,null,null,null,null,null,null,null,null,null,null,null,null,null,null,null,null,null,null,null,null,null,null,null,null,null,null,null,null,null,null,null,null,null,null,null,null,null,null,null,null,null,null,{"$f":"SUM(L98:CH105)","v":0}]
[null,null,null,"Pilote"]
[null,null,null,"M1",null,null,"Personne-clé",1]
[null,null,null,"M1"]
[null,null,null,"M2",null,null,"Personne-clé",1]
[null,null,null,"M2"]
[null,null,null,"ST",null,null,"Personne-clé",1]
[null,null,null,"ST"]
[]
[null,null,null,null,null,null,null,null,null,"Sous-total heures Chef de projet",null,"Insérer la somme des heures dans cette cellule"]
[null,null,null,null,null,null,null,null,null,"Sous-total heures suppléant CP",null,"Insérer la somme des heures dans cette cellule"]
[null,null,null,null,null,null,null,null,null,"Sous-total heures Pilote",null,{"$f":"SUM(L25:CH26,L33:CH34,L41:CH42,L49:CH50,L57:CH58,L65:CH66,L73:CH74,L82:CH83,L90:CH91,L98:CH99)","v":0}]
[null,null,null,null,null,null,null,null,null,"Sous-total heures Membre 1",null,{"$f":"SUM(L27:CH28,L35:CH36,L43:CH44,L51:CH52,L59:CH60,L67:CH68,L75:CH76,L84:CH85,L92:CH93,L100:CH101)","v":0}]
[null,null,null,null,null,null,null,null,null,"Sous-total heures Membre 2",null,{"$f":"SUM(L29:CH30,L37:CH38,L45:CH46,L53:CH54,L61:CH62,L69:CH70,L77:CH78,L86:CH87,L94:CH95,L102:CH103)","v":0}]
[null,null,null,null,null,null,null,null,null,"Sous-total heures sous-traitant",null,{"$f":"SUM(L31:CH32,L39:CH40,L47:CH48,L55:CH56,L63:CH64,L71:CH72,L79:CH80,L88:CH89,L96:CH97,L104:CH105)","v":0}]
[null,null,null,"Total des heures prévues pour l'ensemble du mandat 2)",null,null,null,null,null,null,null,{"$f":"SUM(L109:CH112)","v":0},null,null,null,null,null,null,null,null,null,null,null,null,null,null,null,null,null,null,null,null,null,null,null,null,null,null,null,null,null,null,null,null,null,null,null,null,null,null,null,null,null,null,null,null,null,null,null,null,null,null,null,null,null,null,null,null,null,null,null,null,null,null,null,null,null,null,null,null,null,null,null,null,null,null,{"$f":"SUM(CI25:CI105)","v":0}]
[]
[null,"1)","utiliser les abréviations figurant sous F2"]
[null,"2)","doit correspondre au total général des heures, selon F11"]

{"sheet":"F22.1","index":9,"n_rows":64,"n_cols":15,"rows_kept":64,"cut":false,"hidden":false,"merged":[[55,12,55,14],[57,1,57,7],[59,1,61,8],[59,9,61,9],[59,11,59,14],[60,11,60,14],[61,11,61,14],[43,1,44,3],[43,4,44,8],[43,9,43,14],[44,9,47,14],[45,1,45,3],[45,4,45,8],[46,1,47,3],[46,4,47,8],[34,1,35,8],[34,9,35,14],[36,1,36,3],[36,4,36,8],[36,9,36,14],[37,1,37,3],[37,4,37,8],[37,9,42,14],[38,1,38,3],[38,4,38,8],[39,1,39,3],[39,4,39,8],[40,1,40,3],[40,4,40,8],[41,1,41,3],[41,4,41,8],[42,1,42,3],[42,4,42,8],[27,12,27,14],[29,1,29,7],[31,1,33,8],[31,9,33,9],[31,11,31,14],[32,11,32,14],[33,11,33,14],[15,9,15,14],[16,9,19,14],[17,1,17,3],[17,4,17,8],[18,1,19,3],[15,1,16,3],[15,4,16,8],[18,4,19,8],[9,1,9,3],[9,4,9,8],[9,9,14,14],[10,1,10,3],[10,4,10,8],[11,1,11,3],[11,4,11,8],[12,1,12,3],[12,4,12,8],[13,1,13,3],[13,4,13,8],[14,1,14,3],[14,4,14,8],[8,1,8,3],[8,4,8,8],[8,9,8,14],[3,3,3,12],[4,3,4,12],[5,1,5,14],[6,1,7,8],[6,9,7,14]]}
[]
[null,null,null,null,null,null,null,null,null,null,null,null,null,null,"F22.1"]
[]
[null,"Critère 2 :",null,"Organisation pour l'exécution du marché",null,null,null,null,null,null,null,null,null,"CPT",0.4]
[null,"Sous-critère 2.2 :",null,"Qualifications des personnes-clés",null,null,null,null,null,null,null,null,null,null,0.15]
[null,"Chef de projet, interlocuteur privilégié du MO"]
[null,"Chef de projet",null,null,null,null,null,null,null,"Références de la personne en relation avec le marché et la fonction demandée"]
[]
[null,"Nom, Prénom",null,null,null,null,null,null,null,"Objet 1 (Description et fonction dans le projet) :"]
[null,"Société 1) "]
[null,"Formation de base"]
[null,"Années de pratique"]
[null,"Age"]
[null,"Dans la société 1) depuis"]
[null,"Spécialisations"]
[null," (formation, diplômes et accréditations particulières utiles au mandat)",null,null,null,null,null,null,null,"Objet 2 (Description et fonction dans le projet) :"]
[]
[null,"Fonction actuelle"]
[null," (indiquer une éventuelle fonction dirigeante)"]
[]
[]
[null,"Maîtrise de la langue française :",null,null,null,null,"langue maternelle",null,null,null,"parlé/écrit",null,null,"peu de connaissances"]
[]
[" ","Curriculum vitae joint en annexe : ",null,null,null,null,null,null,null,null,"oui",null,null,"non"]
[]
[null,"Occupe une autre fonction dans le mandat :",null,null,null,null,null,null,null,null,"oui",null,null,"non"]
[]
[" ","Disponibilité dès le jj mmmm aaaa :  ",null,null,null,null,null,"immédiate",null,null,"sinon, à partir du :"]
[]
[null,"Taux de disponibilité pour la fonction 20xx-20xx en % :  ",null,null,null,null,null,null,null," (indiquer en % d'un emploi plein-temps pour la fonction)"]
[]
[null,"Indiquer les mandats de même nature, actuellement en cours et pour lesquels le responsable occupe une fonction similaire : ",null,null,null,null,null,null,null,null,"1."]
[null,null,null,null,null,null,null,null,null,null,"2."]
[null,null,null,null,null,null,null,null,null,null,"3."]
[null,"Remplaçant du chef de projet",null,null,null,null,null,null,null,"Références de la personne en relation avec le marché et la fonction demandée"]
[]
[null,"Nom, Prénom",null,null,null,null,null,null,null,"Objet 1 (Description et fonction dans le projet) :"]
[null,"Société 1) "]
[null,"Formation de base"]
[null,"Années de pratique"]
[null,"Age"]
[null,"Dans la société 1) depuis"]
[null,"Spécialisations"]
[null," (formation, diplômes et accréditations particulières utiles au mandat)",null,null,null,null,null,null,null,"Objet 2 (Description et fonction dans le projet) :"]
[]
[null,"Fonction actuelle"]
[null," (indiquer une éventuelle fonction dirigeante)"]
[]
[]
[null,"Maîtrise de la langue française :",null,null,null,null,"langue maternelle",null,null,null,"parlé/écrit",null,null,"peu de connaissances"]
[]
[" ","Curriculum vitae joint en annexe : ",null,null,null,null,null,null,null,null,"oui",null,null,"non"]
[]
[null,"Occupe une autre fonction dans le mandat :",null,null,null,null,null,null,null,null,"oui",null,null,"non"]
[]
[" ","Disponibilité dès le jj mmmm aaaa :  ",null,null,null,null,null,"immédiate",null,null,"sinon, à partir du :"]
[]
[null,"Taux de disponibilité pour la fonction 20xx-20xx en % :  ",null,null,null,null,null,null,null," (indiquer en % d'un emploi plein-temps pour la fonction)"]
[]
[null,"Indiquer les mandats de même nature, actuellement en cours et pour lesquels le responsable occupe une fonction similaire : ",null,null,null,null,null,null,null,null,"1."]
[null,null,null,null,null,null,null,null,null,null,"2."]
[null,null,null,null,null,null,null,null,null,null,"3."]
[]
[null,"1)","utiliser les abréviations figurant sous F2"]

{"sheet":"F22.2","index":10,"n_rows":64,"n_cols":15,"rows_kept":64,"cut":false,"hidden":false,"merged":[[55,12,55,14],[57,1,57,7],[59,1,61,8],[59,9,61,9],[59,11,59,14],[60,11,60,14],[61,11,61,14],[43,1,44,3],[43,4,44,8],[43,9,43,14],[44,9,47,14],[45,1,45,3],[45,4,45,8],[46,1,47,3],[46,4,47,8],[34,1,35,8],[34,9,35,14],[36,1,36,3],[36,4,36,8],[36,9,36,14],[37,1,37,3],[37,4,37,8],[37,9,42,14],[38,1,38,3],[38,4,38,8],[39,1,39,3],[39,4,39,8],[40,1,40,3],[40,4,40,8],[41,1,41,3],[41,4,41,8],[42,1,42,3],[42,4,42,8],[27,12,27,14],[29,1,29,7],[31,1,33,8],[31,9,33,9],[31,11,31,14],[32,11,32,14],[33,11,33,14],[15,9,15,14],[16,9,19,14],[17,1,17,3],[17,4,17,8],[18,1,19,3],[15,1,16,3],[15,4,16,8],[18,4,19,8],[9,1,9,3],[9,4,9,8],[9,9,14,14],[10,1,10,3],[10,4,10,8],[11,1,11,3],[11,4,11,8],[12,1,12,3],[12,4,12,8],[13,1,13,3],[13,4,13,8],[14,1,14,3],[14,4,14,8],[8,1,8,3],[8,4,8,8],[8,9,8,14],[3,3,3,12],[4,3,4,12],[5,1,5,14],[6,1,7,8],[6,9,7,14]]}
[]
[null,null,null,null,null,null,null,null,null,null,null,null,null,null,"F22.2"]
[]
[null,"Critère 2 :",null,"Organisation pour l'exécution du marché",null,null,null,null,null,null,null,null,null,"CPT",0.4]
[null,"Sous-critère 2.2 :",null,"Qualifications des personnes-clés",null,null,null,null,null,null,null,null,null,null,0.15]
[null,"Ingénieur spécialisé en projet et construction de routes"]
[null,"Spécialiste routes",null,null,null,null,null,null,null,"Références de la personne en relation avec le marché et la fonction demandée"]
[]
[null,"Nom, Prénom",null,null,null,null,null,null,null,"Objet 1 (Description et fonction dans le projet) :"]
[null,"Société 1) "]
[null,"Formation de base"]
[null,"Années de pratique"]
[null,"Age"]
[null,"Dans la société 1) depuis"]
[null,"Spécialisations"]
[null," (formation, diplômes et accréditations particulières utiles au mandat)",null,null,null,null,null,null,null,"Objet 2 (Description et fonction dans le projet) :"]
[]
[null,"Fonction actuelle"]
[null," (indiquer une éventuelle fonction dirigeante)"]
[]
[]
[null,"Maîtrise de la langue française :",null,null,null,null,"langue maternelle",null,null,null,"parlé/écrit",null,null,"peu de connaissances"]
[]
[" ","Curriculum vitae joint en annexe : ",null,null,null,null,null,null,null,null,"oui",null,null,"non"]
[]
[null,"Occupe une autre fonction dans le mandat :",null,null,null,null,null,null,null,null,"oui",null,null,"non"]
[]
[" ","Disponibilité dès le jj mmmm aaaa :  ",null,null,null,null,null,"immédiate",null,null,"sinon, à partir du :"]
[]
[null,"Taux de disponibilité pour la fonction 20xx-20xx en % :  ",null,null,null,null,null,null,null," (indiquer en % d'un emploi plein-temps)"]
[]
[null,"Indiquer les mandats de même nature, actuellement en cours et pour lesquels le responsable occupe une fonction similaire : ",null,null,null,null,null,null,null,null,"1."]
[null,null,null,null,null,null,null,null,null,null,"2."]
[null,null,null,null,null,null,null,null,null,null,"3."]
[null,"Remplaçant du spécialiste routes",null,null,null,null,null,null,null,"Références de la personne en relation avec le marché et la fonction demandée"]
[]
[null,"Nom, Prénom",null,null,null,null,null,null,null,"Objet 1 (Description et fonction dans le projet) :"]
[null,"Société 1) "]
[null,"Formation de base"]
[null,"Années de pratique"]
[null,"Age"]
[null,"Dans la société 1) depuis"]
[null,"Spécialisations"]
[null," (formation, diplômes et accréditations particulières utiles au mandat)",null,null,null,null,null,null,null,"Objet 2 (Description et fonction dans le projet) :"]
[]
[null,"Fonction actuelle"]
[null," (indiquer une éventuelle fonction dirigeante)"]
[]
[]
[null,"Maîtrise de la langue française :",null,null,null,null,"langue maternelle",null,null,null,"parlé/écrit",null,null,"peu de connaissances"]
[]
[" ","Curriculum vitae joint en annexe : ",null,null,null,null,null,null,null,null,"oui",null,null,"non"]
[]
[null,"Occupe une autre fonction dans le mandat :",null,null,null,null,null,null,null,null,"oui",null,null,"non"]
[]
[" ","Disponibilité dès le jj mmmm aaaa :  ",null,null,null,null,null,"immédiate",null,null,"sinon, à partir du :"]
[]
[null,"Taux de disponibilité pour la fonction 20xx-20xx en % :  ",null,null,null,null,null,null,null," (indiquer en % d'un emploi plein-temps)"]
[]
[null,"Indiquer les mandats de même nature, actuellement en cours et pour lesquels le responsable occupe une fonction similaire : ",null,null,null,null,null,null,null,null,"1."]
[null,null,null,null,null,null,null,null,null,null,"2."]
[null,null,null,null,null,null,null,null,null,null,"3."]
[]
[null,"1)","utiliser les abréviations figurant sous F2"]

{"sheet":"F22.3","index":11,"n_rows":64,"n_cols":15,"rows_kept":64,"cut":false,"hidden":false,"merged":[[55,12,55,14],[57,1,57,7],[59,1,61,8],[59,9,61,9],[59,11,59,14],[60,11,60,14],[61,11,61,14],[43,1,44,3],[43,4,44,8],[43,9,43,14],[44,9,47,14],[45,1,45,3],[45,4,45,8],[46,1,47,3],[46,4,47,8],[34,1,35,8],[34,9,35,14],[36,1,36,3],[36,4,36,8],[36,9,36,14],[37,1,37,3],[37,4,37,8],[37,9,42,14],[38,1,38,3],[38,4,38,8],[39,1,39,3],[39,4,39,8],[40,1,40,3],[40,4,40,8],[41,1,41,3],[41,4,41,8],[42,1,42,3],[42,4,42,8],[27,12,27,14],[29,1,29,7],[31,1,33,8],[31,9,33,9],[31,11,31,14],[32,11,32,14],[33,11,33,14],[15,9,15,14],[16,9,19,14],[17,1,17,3],[17,4,17,8],[18,1,19,3],[15,1,16,3],[15,4,16,8],[18,4,19,8],[9,1,9,3],[9,4,9,8],[9,9,14,14],[10,1,10,3],[10,4,10,8],[11,1,11,3],[11,4,11,8],[12,1,12,3],[12,4,12,8],[13,1,13,3],[13,4,13,8],[14,1,14,3],[14,4,14,8],[8,1,8,3],[8,4,8,8],[8,9,8,14],[3,3,3,12],[4,3,4,12],[5,1,5,14],[6,1,7,8],[6,9,7,14]]}
[]
[null,null,null,null,null,null,null,null,null,null,null,null,null,null,"F22.3"]
[]
[null,"Critère 2 :",null,"Organisation pour l'exécution du marché",null,null,null,null,null,null,null,null,null,"CPT",0.4]
[null,"Sous-critère 2.2 :",null,"Qualifications des personnes-clés",null,null,null,null,null,null,null,null,null,null,0.15]
[null,"Ingénieur spécialisé en projet et construction de tunnel"]
[null,"Sépcialiste tunnel",null,null,null,null,null,null,null,"Références de la personne en relation avec le marché et la fonction demandée"]
[]
[null,"Nom, Prénom",null,null,null,null,null,null,null,"Objet 1 (Description et fonction dans le projet) :"]
[null,"Société 1) "]
[null,"Formation de base"]
[null,"Années de pratique"]
[null,"Age"]
[null,"Dans la société 1) depuis"]
[null,"Spécialisations"]
[null," (formation, diplômes et accréditations particulières utiles au mandat)",null,null,null,null,null,null,null,"Objet 2 (Description et fonction dans le projet) :"]
[]
[null,"Fonction actuelle"]
[null," (indiquer une éventuelle fonction dirigeante)"]
[]
[]
[null,"Maîtrise de la langue française :",null,null,null,null,"langue maternelle",null,null,null,"parlé/écrit",null,null,"peu de connaissances"]
[]
[" ","Curriculum vitae joint en annexe : ",null,null,null,null,null,null,null,null,"oui",null,null,"non"]
[]
[null,"Occupe une autre fonction dans le mandat :",null,null,null,null,null,null,null,null,"oui",null,null,"non"]
[]
[" ","Disponibilité dès le jj mmmm aaaa :  ",null,null,null,null,null,"immédiate",null,null,"sinon, à partir du :"]
[]
[null,"Taux de disponibilité pour la fonction 20xx-20xx en % :  ",null,null,null,null,null,null,null," (indiquer en % d'un emploi plein-temps)"]
[]
[null,"Indiquer les mandats de même nature, actuellement en cours et pour lesquels le responsable occupe une fonction similaire : ",null,null,null,null,null,null,null,null,"1."]
[null,null,null,null,null,null,null,null,null,null,"2."]
[null,null,null,null,null,null,null,null,null,null,"3."]
[null,"Remplaçant du spécialiste tunnel",null,null,null,null,null,null,null,"Références de la personne en relation avec le marché et la fonction demandée"]
[]
[null,"Nom, Prénom",null,null,null,null,null,null,null,"Objet 1 (Description et fonction dans le projet) :"]
[null,"Société 1) "]
[null,"Formation de base"]
[null,"Années de pratique"]
[null,"Age"]
[null,"Dans la société 1) depuis"]
[null,"Spécialisations"]
[null," (formation, diplômes et accréditations particulières utiles au mandat)",null,null,null,null,null,null,null,"Objet 2 (Description et fonction dans le projet) :"]
[]
[null,"Fonction actuelle"]
[null," (indiquer une éventuelle fonction dirigeante)"]
[]
[]
[null,"Maîtrise de la langue française :",null,null,null,null,"langue maternelle",null,null,null,"parlé/écrit",null,null,"peu de connaissances"]
[]
[" ","Curriculum vitae joint en annexe : ",null,null,null,null,null,null,null,null,"oui",null,null,"non"]
[]
[null,"Occupe une autre fonction dans le mandat :",null,null,null,null,null,null,null,null,"oui",null,null,"non"]
[]
[" ","Disponibilité dès le jj mmmm aaaa :  ",null,null,null,null,null,"immédiate",null,null,"sinon, à partir du :"]
[]
[null,"Taux de disponibilité pour la fonction 20xx-20xx en % :  ",null,null,null,null,null,null,null," (indiquer en % d'un emploi plein-temps)"]
[]
[null,"Indiquer les mandats de même nature, actuellement en cours et pour lesquels le responsable occupe une fonction similaire : ",null,null,null,null,null,null,null,null,"1."]
[null,null,null,null,null,null,null,null,null,null,"2."]
[null,null,null,null,null,null,null,null,null,null,"3."]
[]
[null,"1)","utiliser les abréviations figurant sous F2"]

{"sheet":"F22.4","index":12,"n_rows":64,"n_cols":15,"rows_kept":64,"cut":false,"hidden":false,"merged":[[55,12,55,14],[57,1,57,7],[59,1,61,8],[59,9,61,9],[59,11,59,14],[60,11,60,14],[61,11,61,14],[43,1,44,3],[43,4,44,8],[43,9,43,14],[44,9,47,14],[45,1,45,3],[45,4,45,8],[46,1,47,3],[46,4,47,8],[34,1,35,8],[34,9,35,14],[36,1,36,3],[36,4,36,8],[36,9,36,14],[37,1,37,3],[37,4,37,8],[37,9,42,14],[38,1,38,3],[38,4,38,8],[39,1,39,3],[39,4,39,8],[40,1,40,3],[40,4,40,8],[41,1,41,3],[41,4,41,8],[42,1,42,3],[42,4,42,8],[27,12,27,14],[29,1,29,7],[31,1,33,8],[31,9,33,9],[31,11,31,14],[32,11,32,14],[33,11,33,14],[15,9,15,14],[16,9,19,14],[17,1,17,3],[17,4,17,8],[18,1,19,3],[15,1,16,3],[15,4,16,8],[18,4,19,8],[9,1,9,3],[9,4,9,8],[9,9,14,14],[10,1,10,3],[10,4,10,8],[11,1,11,3],[11,4,11,8],[12,1,12,3],[12,4,12,8],[13,1,13,3],[13,4,13,8],[14,1,14,3],[14,4,14,8],[8,1,8,3],[8,4,8,8],[8,9,8,14],[3,3,3,12],[4,3,4,12],[5,1,5,14],[6,1,7,8],[6,9,7,14]]}
[]
[null,null,null,null,null,null,null,null,null,null,null,null,null,null,"F22.4"]
[]
[null,"Critère 2 :",null,"Organisation pour l'exécution du marché",null,null,null,null,null,null,null,null,null,"CPT",0.4]
[null,"Sous-critère 2.2 :",null,"Qualifications des personnes-clés",null,null,null,null,null,null,null,null,null,null,0.15]
[null,"Ingénieur spécialisé en projet et construction d'ouvrages de soutènement"]
[null,"Sépcialiste ouvrages",null,null,null,null,null,null,null,"Références de la personne en relation avec le marché et la fonction demandée"]
[]
[null,"Nom, Prénom",null,null,null,null,null,null,null,"Objet 1 (Description et fonction dans le projet) :"]
[null,"Société 1) "]
[null,"Formation de base"]
[null,"Années de pratique"]
[null,"Age"]
[null,"Dans la société 1) depuis"]
[null,"Spécialisations"]
[null," (formation, diplômes et accréditations particulières utiles au mandat)",null,null,null,null,null,null,null,"Objet 2 (Description et fonction dans le projet) :"]
[]
[null,"Fonction actuelle"]
[null," (indiquer une éventuelle fonction dirigeante)"]
[]
[]
[null,"Maîtrise de la langue française :",null,null,null,null,"langue maternelle",null,null,null,"parlé/écrit",null,null,"peu de connaissances"]
[]
[" ","Curriculum vitae joint en annexe : ",null,null,null,null,null,null,null,null,"oui",null,null,"non"]
[]
[null,"Occupe une autre fonction dans le mandat :",null,null,null,null,null,null,null,null,"oui",null,null,"non"]
[]
[" ","Disponibilité dès le jj mmmm aaaa :  ",null,null,null,null,null,"immédiate",null,null,"sinon, à partir du :"]
[]
[null,"Taux de disponibilité pour la fonction 20xx-20xx en % :  ",null,null,null,null,null,null,null," (indiquer en % d'un emploi plein-temps)"]
[]
[null,"Indiquer les mandats de même nature, actuellement en cours et pour lesquels le responsable occupe une fonction similaire : ",null,null,null,null,null,null,null,null,"1."]
[null,null,null,null,null,null,null,null,null,null,"2."]
[null,null,null,null,null,null,null,null,null,null,"3."]
[null,"Remplaçant du spécialiste ouvrages",null,null,null,null,null,null,null,"Références de la personne en relation avec le marché et la fonction demandée"]
[]
[null,"Nom, Prénom",null,null,null,null,null,null,null,"Objet 1 (Description et fonction dans le projet) :"]
[null,"Société 1) "]
[null,"Formation de base"]
[null,"Années de pratique"]
[null,"Age"]
[null,"Dans la société 1) depuis"]
[null,"Spécialisations"]
[null," (formation, diplômes et accréditations particulières utiles au mandat)",null,null,null,null,null,null,null,"Objet 2 (Description et fonction dans le projet) :"]
[]
[null,"Fonction actuelle"]
[null," (indiquer une éventuelle fonction dirigeante)"]
[]
[]
[null,"Maîtrise de la langue française :",null,null,null,null,"langue maternelle",null,null,null,"parlé/écrit",null,null,"peu de connaissances"]
[]
[" ","Curriculum vitae joint en annexe : ",null,null,null,null,null,null,null,null,"oui",null,null,"non"]
[]
[null,"Occupe une autre fonction dans le mandat :",null,null,null,null,null,null,null,null,"oui",null,null,"non"]
[]
[" ","Disponibilité dès le jj mmmm aaaa :  ",null,null,null,null,null,"immédiate",null,null,"sinon, à partir du :"]
[]
[null,"Taux de disponibilité pour la fonction 20xx-20xx en % :  ",null,null,null,null,null,null,null," (indiquer en % d'un emploi plein-temps)"]
[]
[null,"Indiquer les mandats de même nature, actuellement en cours et pour lesquels le responsable occupe une fonction similaire : ",null,null,null,null,null,null,null,null,"1."]
[null,null,null,null,null,null,null,null,null,null,"2."]
[null,null,null,null,null,null,null,null,null,null,"3."]
[]
[null,"1)","utiliser les abréviations figurant sous F2"]

{"sheet":"F22.5","index":13,"n_rows":64,"n_cols":15,"rows_kept":64,"cut":false,"hidden":false,"merged":[[55,12,55,14],[57,1,57,7],[59,1,61,8],[59,9,61,9],[59,11,59,14],[60,11,60,14],[61,11,61,14],[43,1,44,3],[43,4,44,8],[43,9,43,14],[44,9,47,14],[45,1,45,3],[45,4,45,8],[46,1,47,3],[46,4,47,8],[34,1,35,8],[34,9,35,14],[36,1,36,3],[36,4,36,8],[36,9,36,14],[37,1,37,3],[37,4,37,8],[37,9,42,14],[38,1,38,3],[38,4,38,8],[39,1,39,3],[39,4,39,8],[40,1,40,3],[40,4,40,8],[41,1,41,3],[41,4,41,8],[42,1,42,3],[42,4,42,8],[27,12,27,14],[29,1,29,7],[31,1,33,8],[31,9,33,9],[31,11,31,14],[32,11,32,14],[33,11,33,14],[15,9,15,14],[16,9,19,14],[17,1,17,3],[17,4,17,8],[18,1,19,3],[15,1,16,3],[15,4,16,8],[18,4,19,8],[9,1,9,3],[9,4,9,8],[9,9,14,14],[10,1,10,3],[10,4,10,8],[11,1,11,3],[11,4,11,8],[12,1,12,3],[12,4,12,8],[13,1,13,3],[13,4,13,8],[14,1,14,3],[14,4,14,8],[8,1,8,3],[8,4,8,8],[8,9,8,14],[3,3,3,12],[4,3,4,12],[5,1,5,14],[6,1,7,8],[6,9,7,14]]}
[]
[null,null,null,null,null,null,null,null,null,null,null,null,null,null,"F22.5"]
[]
[null,"Critère 2 :",null,"Organisation pour l'exécution du marché",null,null,null,null,null,null,null,null,null,"CPT",0.4]
[null,"Sous-critère 2.2 :",null,"Qualifications des personnes-clés",null,null,null,null,null,null,null,null,null,null,0.15]
[null,"Spécialiste géologue avec expérience de projets en rapport avec le cahier des charges"]
[null,"Sépcialiste géologue",null,null,null,null,null,null,null,"Références de la personne en relation avec le marché et la fonction demandée"]
[]
[null,"Nom, Prénom",null,null,null,null,null,null,null,"Objet 1 (Description et fonction dans le projet) :"]
[null,"Société 1) "]
[null,"Formation de base"]
[null,"Années de pratique"]
[null,"Age"]
[null,"Dans la société 1) depuis"]
[null,"Spécialisations"]
[null," (formation, diplômes et accréditations particulières utiles au mandat)",null,null,null,null,null,null,null,"Objet 2 (Description et fonction dans le projet) :"]
[]
[null,"Fonction actuelle"]
[null," (indiquer une éventuelle fonction dirigeante)"]
[]
[]
[null,"Maîtrise de la langue française :",null,null,null,null,"langue maternelle",null,null,null,"parlé/écrit",null,null,"peu de connaissances"]
[]
[" ","Curriculum vitae joint en annexe : ",null,null,null,null,null,null,null,null,"oui",null,null,"non"]
[]
[null,"Occupe une autre fonction dans le mandat :",null,null,null,null,null,null,null,null,"oui",null,null,"non"]
[]
[" ","Disponibilité dès le jj mmmm aaaa :  ",null,null,null,null,null,"immédiate",null,null,"sinon, à partir du :"]
[]
[null,"Taux de disponibilité pour la fonction 20xx-20xx en % :  ",null,null,null,null,null,null,null," (indiquer en % d'un emploi plein-temps)"]
[]
[null,"Indiquer les mandats de même nature, actuellement en cours et pour lesquels le responsable occupe une fonction similaire : ",null,null,null,null,null,null,null,null,"1."]
[null,null,null,null,null,null,null,null,null,null,"2."]
[null,null,null,null,null,null,null,null,null,null,"3."]
[null,"Remplaçant du spécialiste géologue",null,null,null,null,null,null,null,"Références de la personne en relation avec le marché et la fonction demandée"]
[]
[null,"Nom, Prénom",null,null,null,null,null,null,null,"Objet 1 (Description et fonction dans le projet) :"]
[null,"Société 1) "]
[null,"Formation de base"]
[null,"Années de pratique"]
[null,"Age"]
[null,"Dans la société 1) depuis"]
[null,"Spécialisations"]
[null," (formation, diplômes et accréditations particulières utiles au mandat)",null,null,null,null,null,null,null,"Objet 2 (Description et fonction dans le projet) :"]
[]
[null,"Fonction actuelle"]
[null," (indiquer une éventuelle fonction dirigeante)"]
[]
[]
[null,"Maîtrise de la langue française :",null,null,null,null,"langue maternelle",null,null,null,"parlé/écrit",null,null,"peu de connaissances"]
[]
[" ","Curriculum vitae joint en annexe : ",null,null,null,null,null,null,null,null,"oui",null,null,"non"]
[]
[null,"Occupe une autre fonction dans le mandat :",null,null,null,null,null,null,null,null,"oui",null,null,"non"]
[]
[" ","Disponibilité dès le jj mmmm aaaa :  ",null,null,null,null,null,"immédiate",null,null,"sinon, à partir du :"]
[]
[null,"Taux de disponibilité pour la fonction 20xx-20xx en % :  ",null,null,null,null,null,null,null," (indiquer en % d'un emploi plein-temps)"]
[]
[null,"Indiquer les mandats de même nature, actuellement en cours et pour lesquels le responsable occupe une fonction similaire : ",null,null,null,null,null,null,null,null,"1."]
[null,null,null,null,null,null,null,null,null,null,"2."]
[null,null,null,null,null,null,null,null,null,null,"3."]
[]
[null,"1)","utiliser les abréviations figurant sous F2"]

{"sheet":"F22.6","index":14,"n_rows":64,"n_cols":15,"rows_kept":64,"cut":false,"hidden":false,"merged":[[55,12,55,14],[57,1,57,7],[59,1,61,8],[59,9,61,9],[59,11,59,14],[60,11,60,14],[61,11,61,14],[43,1,44,3],[43,4,44,8],[43,9,43,14],[44,9,47,14],[45,1,45,3],[45,4,45,8],[46,1,47,3],[46,4,47,8],[34,1,35,8],[34,9,35,14],[36,1,36,3],[36,4,36,8],[36,9,36,14],[37,1,37,3],[37,4,37,8],[37,9,42,14],[38,1,38,3],[38,4,38,8],[39,1,39,3],[39,4,39,8],[40,1,40,3],[40,4,40,8],[41,1,41,3],[41,4,41,8],[42,1,42,3],[42,4,42,8],[27,12,27,14],[29,1,29,7],[31,1,33,8],[31,9,33,9],[31,11,31,14],[32,11,32,14],[33,11,33,14],[15,9,15,14],[16,9,19,14],[17,1,17,3],[17,4,17,8],[18,1,19,3],[15,1,16,3],[15,4,16,8],[18,4,19,8],[9,1,9,3],[9,4,9,8],[9,9,14,14],[10,1,10,3],[10,4,10,8],[11,1,11,3],[11,4,11,8],[12,1,12,3],[12,4,12,8],[13,1,13,3],[13,4,13,8],[14,1,14,3],[14,4,14,8],[8,1,8,3],[8,4,8,8],[8,9,8,14],[3,3,3,12],[4,3,4,12],[5,1,5,14],[6,1,7,8],[6,9,7,14]]}
[]
[null,null,null,null,null,null,null,null,null,null,null,null,null,null,"F22.6"]
[]
[null,"Critère 2 :",null,"Organisation pour l'exécution du marché",null,null,null,null,null,null,null,null,null,"CPT",0.4]
[null,"Sous-critère 2.2 :",null,"Qualifications des personnes-clés",null,null,null,null,null,null,null,null,null,null,0.15]
[null,"Spécialiste géotechnicien avec expérience de projets en rapport avec le cahier des charges"]
[null,"Spécialiste géotechnique",null,null,null,null,null,null,null,"Références de la personne en relation avec le marché et la fonction demandée"]
[]
[null,"Nom, Prénom",null,null,null,null,null,null,null,"Objet 1 (Description et fonction dans le projet) :"]
[null,"Société 1) "]
[null,"Formation de base"]
[null,"Années de pratique"]
[null,"Age"]
[null,"Dans la société 1) depuis"]
[null,"Spécialisations"]
[null," (formation, diplômes et accréditations particulières utiles au mandat)",null,null,null,null,null,null,null,"Objet 2 (Description et fonction dans le projet) :"]
[]
[null,"Fonction actuelle"]
[null," (indiquer une éventuelle fonction dirigeante)"]
[]
[]
[null,"Maîtrise de la langue française :",null,null,null,null,"langue maternelle",null,null,null,"parlé/écrit",null,null,"peu de connaissances"]
[]
[" ","Curriculum vitae joint en annexe : ",null,null,null,null,null,null,null,null,"oui",null,null,"non"]
[]
[null,"Occupe une autre fonction dans le mandat :",null,null,null,null,null,null,null,null,"oui",null,null,"non"]
[]
[" ","Disponibilité dès le jj mmmm aaaa :  ",null,null,null,null,null,"immédiate",null,null,"sinon, à partir du :"]
[]
[null,"Taux de disponibilité pour la fonction 20xx-20xx en % :  ",null,null,null,null,null,null,null," (indiquer en % d'un emploi plein-temps)"]
[]
[null,"Indiquer les mandats de même nature, actuellement en cours et pour lesquels le responsable occupe une fonction similaire : ",null,null,null,null,null,null,null,null,"1."]
[null,null,null,null,null,null,null,null,null,null,"2."]
[null,null,null,null,null,null,null,null,null,null,"3."]
[null,"Remplaçant du spécialiste géotechnique",null,null,null,null,null,null,null,"Références de la personne en relation avec le marché et la fonction demandée"]
[]
[null,"Nom, Prénom",null,null,null,null,null,null,null,"Objet 1 (Description et fonction dans le projet) :"]
[null,"Société 1) "]
[null,"Formation de base"]
[null,"Années de pratique"]
[null,"Age"]
[null,"Dans la société 1) depuis"]
[null,"Spécialisations"]
[null," (formation, diplômes et accréditations particulières utiles au mandat)",null,null,null,null,null,null,null,"Objet 2 (Description et fonction dans le projet) :"]
[]
[null,"Fonction actuelle"]
[null," (indiquer une éventuelle fonction dirigeante)"]
[]
[]
[null,"Maîtrise de la langue française :",null,null,null,null,"langue maternelle",null,null,null,"parlé/écrit",null,null,"peu de connaissances"]
[]
[" ","Curriculum vitae joint en annexe : ",null,null,null,null,null,null,null,null,"oui",null,null,"non"]
[]
[null,"Occupe une autre fonction dans le mandat :",null,null,null,null,null,null,null,null,"oui",null,null,"non"]
[]
[" ","Disponibilité dès le jj mmmm aaaa :  ",null,null,null,null,null,"immédiate",null,null,"sinon, à partir du :"]
[]
[null,"Taux de disponibilité pour la fonction 20xx-20xx en % :  ",null,null,null,null,null,null,null," (indiquer en % d'un emploi plein-temps)"]
[]
[null,"Indiquer les mandats de même nature, actuellement en cours et pour lesquels le responsable occupe une fonction similaire : ",null,null,null,null,null,null,null,null,"1."]
[null,null,null,null,null,null,null,null,null,null,"2."]
[null,null,null,null,null,null,null,null,null,null,"3."]
[]
[null,"1)","utiliser les abréviations figurant sous F2"]

{"sheet":"F22.7","index":15,"n_rows":64,"n_cols":15,"rows_kept":64,"cut":false,"hidden":false,"merged":[[55,12,55,14],[57,1,57,7],[59,1,61,8],[59,9,61,9],[59,11,59,14],[60,11,60,14],[61,11,61,14],[43,1,44,3],[43,4,44,8],[43,9,43,14],[44,9,47,14],[45,1,45,3],[45,4,45,8],[46,1,47,3],[46,4,47,8],[34,1,35,8],[34,9,35,14],[36,1,36,3],[36,4,36,8],[36,9,36,14],[37,1,37,3],[37,4,37,8],[37,9,42,14],[38,1,38,3],[38,4,38,8],[39,1,39,3],[39,4,39,8],[40,1,40,3],[40,4,40,8],[41,1,41,3],[41,4,41,8],[42,1,42,3],[42,4,42,8],[27,12,27,14],[29,1,29,7],[31,1,33,8],[31,9,33,9],[31,11,31,14],[32,11,32,14],[33,11,33,14],[15,9,15,14],[16,9,19,14],[17,1,17,3],[17,4,17,8],[18,1,19,3],[15,1,16,3],[15,4,16,8],[18,4,19,8],[9,1,9,3],[9,4,9,8],[9,9,14,14],[10,1,10,3],[10,4,10,8],[11,1,11,3],[11,4,11,8],[12,1,12,3],[12,4,12,8],[13,1,13,3],[13,4,13,8],[14,1,14,3],[14,4,14,8],[8,1,8,3],[8,4,8,8],[8,9,8,14],[3,3,3,12],[4,3,4,12],[5,1,5,14],[6,1,7,8],[6,9,7,14]]}
[]
[null,null,null,null,null,null,null,null,null,null,null,null,null,null,"F22.7"]
[]
[null,"Critère 2 :",null,"Organisation pour l'exécution du marché",null,null,null,null,null,null,null,null,null,"CPT",0.4]
[null,"Sous-critère 2.2 :",null,"Qualifications des personnes-clés",null,null,null,null,null,null,null,null,null,null,0.15]
[null,"Responsable de la DGT avec expérience en direction générale de travaux"]
[null,"DGT",null,null,null,null,null,null,null,"Références de la personne en relation avec le marché et la fonction demandée"]
[]
[null,"Nom, Prénom",null,null,null,null,null,null,null,"Objet 1 (Description et fonction dans le projet) :"]
[null,"Société 1) "]
[null,"Formation de base"]
[null,"Années de pratique"]
[null,"Age"]
[null,"Dans la société 1) depuis"]
[null,"Spécialisations"]
[null," (formation, diplômes et accréditations particulières utiles au mandat)",null,null,null,null,null,null,null,"Objet 2 (Description et fonction dans le projet) :"]
[]
[null,"Fonction actuelle"]
[null," (indiquer une éventuelle fonction dirigeante)"]
[]
[]
[null,"Maîtrise de la langue française :",null,null,null,null,"langue maternelle",null,null,null,"parlé/écrit",null,null,"peu de connaissances"]
[]
[" ","Curriculum vitae joint en annexe : ",null,null,null,null,null,null,null,null,"oui",null,null,"non"]
[]
[null,"Occupe une autre fonction dans le mandat :",null,null,null,null,null,null,null,null,"oui",null,null,"non"]
[]
[" ","Disponibilité dès le jj mmmm aaaa :  ",null,null,null,null,null,"immédiate",null,null,"sinon, à partir du :"]
[]
[null,"Taux de disponibilité pour la fonction 20xx-20xx en % :  ",null,null,null,null,null,null,null," (indiquer en % d'un emploi plein-temps)"]
[]
[null,"Indiquer les mandats de même nature, actuellement en cours et pour lesquels le responsable occupe une fonction similaire : ",null,null,null,null,null,null,null,null,"1."]
[null,null,null,null,null,null,null,null,null,null,"2."]
[null,null,null,null,null,null,null,null,null,null,"3."]
[null,"Remplaçant de la DGT",null,null,null,null,null,null,null,"Références de la personne en relation avec le marché et la fonction demandée"]
[]
[null,"Nom, Prénom",null,null,null,null,null,null,null,"Objet 1 (Description et fonction dans le projet) :"]
[null,"Société 1) "]
[null,"Formation de base"]
[null,"Années de pratique"]
[null,"Age"]
[null,"Dans la société 1) depuis"]
[null,"Spécialisations"]
[null," (formation, diplômes et accréditations particulières utiles au mandat)",null,null,null,null,null,null,null,"Objet 2 (Description et fonction dans le projet) :"]
[]
[null,"Fonction actuelle"]
[null," (indiquer une éventuelle fonction dirigeante)"]
[]
[]
[null,"Maîtrise de la langue française :",null,null,null,null,"langue maternelle",null,null,null,"parlé/écrit",null,null,"peu de connaissances"]
[]
[" ","Curriculum vitae joint en annexe : ",null,null,null,null,null,null,null,null,"oui",null,null,"non"]
[]
[null,"Occupe une autre fonction dans le mandat :",null,null,null,null,null,null,null,null,"oui",null,null,"non"]
[]
[" ","Disponibilité dès le jj mmmm aaaa :  ",null,null,null,null,null,"immédiate",null,null,"sinon, à partir du :"]
[]
[null,"Taux de disponibilité pour la fonction 20xx-20xx en % :  ",null,null,null,null,null,null,null," (indiquer en % d'un emploi plein-temps)"]
[]
[null,"Indiquer les mandats de même nature, actuellement en cours et pour lesquels le responsable occupe une fonction similaire : ",null,null,null,null,null,null,null,null,"1."]
[null,null,null,null,null,null,null,null,null,null,"2."]
[null,null,null,null,null,null,null,null,null,null,"3."]
[]
[null,"1)","utiliser les abréviations figurant sous F2"]

{"sheet":"F22.8","index":16,"n_rows":64,"n_cols":15,"rows_kept":64,"cut":false,"hidden":false,"merged":[[55,12,55,14],[57,1,57,7],[59,1,61,8],[59,9,61,9],[59,11,59,14],[60,11,60,14],[61,11,61,14],[43,1,44,3],[43,4,44,8],[43,9,43,14],[44,9,47,14],[45,1,45,3],[45,4,45,8],[46,1,47,3],[46,4,47,8],[34,1,35,8],[34,9,35,14],[36,1,36,3],[36,4,36,8],[36,9,36,14],[37,1,37,3],[37,4,37,8],[37,9,42,14],[38,1,38,3],[38,4,38,8],[39,1,39,3],[39,4,39,8],[40,1,40,3],[40,4,40,8],[41,1,41,3],[41,4,41,8],[42,1,42,3],[42,4,42,8],[27,12,27,14],[29,1,29,7],[31,1,33,8],[31,9,33,9],[31,11,31,14],[32,11,32,14],[33,11,33,14],[15,9,15,14],[16,9,19,14],[17,1,17,3],[17,4,17,8],[18,1,19,3],[15,1,16,3],[15,4,16,8],[18,4,19,8],[9,1,9,3],[9,4,9,8],[9,9,14,14],[10,1,10,3],[10,4,10,8],[11,1,11,3],[11,4,11,8],[12,1,12,3],[12,4,12,8],[13,1,13,3],[13,4,13,8],[14,1,14,3],[14,4,14,8],[8,1,8,3],[8,4,8,8],[8,9,8,14],[3,3,3,12],[4,3,4,12],[5,1,5,14],[6,1,7,8],[6,9,7,14]]}
[]
[null,null,null,null,null,null,null,null,null,null,null,null,null,null,"F22.8"]
[]
[null,"Critère 2 :",null,"Organisation pour l'exécution du marché",null,null,null,null,null,null,null,null,null,"CPT",0.4]
[null,"Sous-critère 2.2 :",null,"Qualifications des personnes-clés",null,null,null,null,null,null,null,null,null,null,0.15]
[null,"Spécialiste en Direction administrative et technique pour travaux de génie civil (hors tunnel) et d'aménagements routiers"]
[null,"Direction administrative et technique pour travaux de génie civil (hors tunnel) et d'aménagements routiers",null,null,null,null,null,null,null,"Références de la personne en relation avec le marché et la fonction demandée"]
[]
[null,"Nom, Prénom",null,null,null,null,null,null,null,"Objet 1 (Description et fonction dans le projet) :"]
[null,"Société 1) "]
[null,"Formation de base"]
[null,"Années de pratique"]
[null,"Age"]
[null,"Dans la société 1) depuis"]
[null,"Spécialisations"]
[null," (formation, diplômes et accréditations particulières utiles au mandat)",null,null,null,null,null,null,null,"Objet 2 (Description et fonction dans le projet) :"]
[]
[null,"Fonction actuelle"]
[null," (indiquer une éventuelle fonction dirigeante)"]
[]
[]
[null,"Maîtrise de la langue française :",null,null,null,null,"langue maternelle",null,null,null,"parlé/écrit",null,null,"peu de connaissances"]
[]
[" ","Curriculum vitae joint en annexe : ",null,null,null,null,null,null,null,null,"oui",null,null,"non"]
[]
[null,"Occupe une autre fonction dans le mandat :",null,null,null,null,null,null,null,null,"oui",null,null,"non"]
[]
[" ","Disponibilité dès le jj mmmm aaaa :  ",null,null,null,null,null,"immédiate",null,null,"sinon, à partir du :"]
[]
[null,"Taux de disponibilité pour la fonction 20xx-20xx en % :  ",null,null,null,null,null,null,null," (indiquer en % d'un emploi plein-temps)"]
[]
[null,"Indiquer les mandats de même nature, actuellement en cours et pour lesquels le responsable occupe une fonction similaire : ",null,null,null,null,null,null,null,null,"1."]
[null,null,null,null,null,null,null,null,null,null,"2."]
[null,null,null,null,null,null,null,null,null,null,"3."]
[null,"Remplaçant de la Direction administrative et technique pour travaux de génie civil (hors tunnel) et d'aménagements routiers ",null,null,null,null,null,null,null,"Références de la personne en relation avec le marché et la fonction demandée"]
[]
[null,"Nom, Prénom",null,null,null,null,null,null,null,"Objet 1 (Description et fonction dans le projet) :"]
[null,"Société 1) "]
[null,"Formation de base"]
[null,"Années de pratique"]
[null,"Age"]
[null,"Dans la société 1) depuis"]
[null,"Spécialisations"]
[null," (formation, diplômes et accréditations particulières utiles au mandat)",null,null,null,null,null,null,null,"Objet 2 (Description et fonction dans le projet) :"]
[]
[null,"Fonction actuelle"]
[null," (indiquer une éventuelle fonction dirigeante)"]
[]
[]
[null,"Maîtrise de la langue française :",null,null,null,null,"langue maternelle",null,null,null,"parlé/écrit",null,null,"peu de connaissances"]
[]
[" ","Curriculum vitae joint en annexe : ",null,null,null,null,null,null,null,null,"oui",null,null,"non"]
[]
[null,"Occupe une autre fonction dans le mandat :",null,null,null,null,null,null,null,null,"oui",null,null,"non"]
[]
[" ","Disponibilité dès le jj mmmm aaaa :  ",null,null,null,null,null,"immédiate",null,null,"sinon, à partir du :"]
[]
[null,"Taux de disponibilité pour la fonction 20xx-20xx en % :  ",null,null,null,null,null,null,null," (indiquer en % d'un emploi plein-temps)"]
[]
[null,"Indiquer les mandats de même nature, actuellement en cours et pour lesquels le responsable occupe une fonction similaire : ",null,null,null,null,null,null,null,null,"1."]
[null,null,null,null,null,null,null,null,null,null,"2."]
[null,null,null,null,null,null,null,null,null,null,"3."]
[]
[null,"1)","utiliser les abréviations figurant sous F2"]

{"sheet":"F22.9","index":17,"n_rows":64,"n_cols":15,"rows_kept":64,"cut":false,"hidden":false,"merged":[[55,12,55,14],[57,1,57,7],[59,1,61,8],[59,9,61,9],[59,11,59,14],[60,11,60,14],[61,11,61,14],[43,1,44,3],[43,4,44,8],[43,9,43,14],[44,9,47,14],[45,1,45,3],[45,4,45,8],[46,1,47,3],[46,4,47,8],[34,1,35,8],[34,9,35,14],[36,1,36,3],[36,4,36,8],[36,9,36,14],[37,1,37,3],[37,4,37,8],[37,9,42,14],[38,1,38,3],[38,4,38,8],[39,1,39,3],[39,4,39,8],[40,1,40,3],[40,4,40,8],[41,1,41,3],[41,4,41,8],[42,1,42,3],[42,4,42,8],[27,12,27,14],[29,1,29,7],[31,1,33,8],[31,9,33,9],[31,11,31,14],[32,11,32,14],[33,11,33,14],[15,9,15,14],[16,9,19,14],[17,1,17,3],[17,4,17,8],[18,1,19,3],[15,1,16,3],[15,4,16,8],[18,4,19,8],[9,1,9,3],[9,4,9,8],[9,9,14,14],[10,1,10,3],[10,4,10,8],[11,1,11,3],[11,4,11,8],[12,1,12,3],[12,4,12,8],[13,1,13,3],[13,4,13,8],[14,1,14,3],[14,4,14,8],[8,1,8,3],[8,4,8,8],[8,9,8,14],[3,3,3,12],[4,3,4,12],[5,1,5,14],[6,1,7,8],[6,9,7,14]]}
[]
[null,null,null,null,null,null,null,null,null,null,null,null,null,null,"F22.9"]
[]
[null,"Critère 2 :",null,"Organisation pour l'exécution du marché",null,null,null,null,null,null,null,null,null,"CPT",0.4]
[null,"Sous-critère 2.2 :",null,"Qualifications des personnes-clés",null,null,null,null,null,null,null,null,null,null,0.15]
[null,"Spécialiste en Direction administrative et technique pour travaux de tunnel"]
[null,"Direction administrative et technique pour travaux de tunnel",null,null,null,null,null,null,null,"Références de la personne en relation avec le marché et la fonction demandée"]
[]
[null,"Nom, Prénom",null,null,null,null,null,null,null,"Objet 1 (Description et fonction dans le projet) :"]
[null,"Société 1) "]
[null,"Formation de base"]
[null,"Années de pratique"]
[null,"Age"]
[null,"Dans la société 1) depuis"]
[null,"Spécialisations"]
[null," (formation, diplômes et accréditations particulières utiles au mandat)",null,null,null,null,null,null,null,"Objet 2 (Description et fonction dans le projet) :"]
[]
[null,"Fonction actuelle"]
[null," (indiquer une éventuelle fonction dirigeante)"]
[]
[]
[null,"Maîtrise de la langue française :",null,null,null,null,"langue maternelle",null,null,null,"parlé/écrit",null,null,"peu de connaissances"]
[]
[" ","Curriculum vitae joint en annexe : ",null,null,null,null,null,null,null,null,"oui",null,null,"non"]
[]
[null,"Occupe une autre fonction dans le mandat :",null,null,null,null,null,null,null,null,"oui",null,null,"non"]
[]
[" ","Disponibilité dès le jj mmmm aaaa :  ",null,null,null,null,null,"immédiate",null,null,"sinon, à partir du :"]
[]
[null,"Taux de disponibilité pour la fonction 20xx-20xx en % :  ",null,null,null,null,null,null,null," (indiquer en % d'un emploi plein-temps)"]
[]
[null,"Indiquer les mandats de même nature, actuellement en cours et pour lesquels le responsable occupe une fonction similaire : ",null,null,null,null,null,null,null,null,"1."]
[null,null,null,null,null,null,null,null,null,null,"2."]
[null,null,null,null,null,null,null,null,null,null,"3."]
[null,"Remplaçant de la Direction administrative et technique pour travaux de tunnel",null,null,null,null,null,null,null,"Références de la personne en relation avec le marché et la fonction demandée"]
[]
[null,"Nom, Prénom",null,null,null,null,null,null,null,"Objet 1 (Description et fonction dans le projet) :"]
[null,"Société 1) "]
[null,"Formation de base"]
[null,"Années de pratique"]
[null,"Age"]
[null,"Dans la société 1) depuis"]
[null,"Spécialisations"]
[null," (formation, diplômes et accréditations particulières utiles au mandat)",null,null,null,null,null,null,null,"Objet 2 (Description et fonction dans le projet) :"]
[]
[null,"Fonction actuelle"]
[null," (indiquer une éventuelle fonction dirigeante)"]
[]
[]
[null,"Maîtrise de la langue française :",null,null,null,null,"langue maternelle",null,null,null,"parlé/écrit",null,null,"peu de connaissances"]
[]
[" ","Curriculum vitae joint en annexe : ",null,null,null,null,null,null,null,null,"oui",null,null,"non"]
[]
[null,"Occupe une autre fonction dans le mandat :",null,null,null,null,null,null,null,null,"oui",null,null,"non"]
[]
[" ","Disponibilité dès le jj mmmm aaaa :  ",null,null,null,null,null,"immédiate",null,null,"sinon, à partir du :"]
[]
[null,"Taux de disponibilité pour la fonction 20xx-20xx en % :  ",null,null,null,null,null,null,null," (indiquer en % d'un emploi plein-temps)"]
[]
[null,"Indiquer les mandats de même nature, actuellement en cours et pour lesquels le responsable occupe une fonction similaire : ",null,null,null,null,null,null,null,null,"1."]
[null,null,null,null,null,null,null,null,null,null,"2."]
[null,null,null,null,null,null,null,null,null,null,"3."]
[]
[null,"1)","utiliser les abréviations figurant sous F2"]

{"sheet":"F23","index":18,"n_rows":100,"n_cols":9,"rows_kept":100,"cut":false,"hidden":false,"merged":[[56,1,56,2],[56,3,56,8],[57,1,57,8],[58,1,98,8],[53,1,53,2],[53,3,53,6],[54,3,54,6],[55,1,55,8],[8,1,48,8],[3,1,3,2],[3,3,3,6],[7,1,7,8],[4,3,4,6],[5,1,5,8],[6,1,6,2],[6,3,6,8]]}
[]
[null,null,null,null,null,null,null,null,"F23"]
[]
[null,"Critère 2 :",null,"Organisation pour l'exécution du marché",null,null,null,"CPT",0.4]
[null,"Sous-critère 2.3 :",null,"Répartition des tâches et des responsabilités pour l’exécution du marché",null,null,null,null,0.1]
[null,"Organisation du soumissionnaire\nOrganigrammes opérationnels, fonctionnels et nominatifs du mandant (y.c. les remplaçants)"]
[null,"Soumissionnaire 1) :",null,{"$f":"IF(Candidat=\"\",\"\",Candidat)","v":"Soumissionnaire…"}]
[null,"Attention à bien mettre en évidence les niveaux stratégiques et opérationnels, ainsi que les différentes fonctions nécessaires à l'exécution du mandat, à savoir les personnes-clés, y compris les fonctions transversales et de soutien, ainsi que les liens avec l'organisation du Maître de l'ouvrage avec leurs liens hiérarchiques et décisionnels tels que prévus d'être mis en place pour l'exécution du mandat"]
[]
[]
[]
[]
[]
[]
[]
[]
[]
[]
[]
[]
[]
[]
[]
[]
[]
[]
[]
[]
[]
[]
[]
[]
[]
[]
[]
[]
[]
[]
[]
[]
[]
[]
[]
[]
[]
[]
[]
[]
[]
[null,"1)","Report automatique de la page titre"]
[]
[null,null,null,null,null,null,null,null,"F23"]
[]
[null,"Critère 2 :",null,"Organisation pour l'exécution du marché",null,null,null,"CPT",0.4]
[null,"Sous-critère 2.3 :",null,"Répartition des tâches et des responsabilités pour l’exécution du marché",null,null,null,null,0.03]
[null,"Organisation du soumissionnaire\nOrganigrammes opérationnels, fonctionnels et nominatifs du mandant (y.c. les remplaçants)"]
[null,"Soumissionnaire 1) :",null,{"$f":"IF(Candidat=\"\",\"\",Candidat)","v":"Soumissionnaire…"}]
[null,"Attention à bien mettre en évidence les niveaux stratégiques et opérationnels, ainsi que les différentes fonctions nécessaires à l'exécution du mandat, à savoir les personnes-clés, y compris les fonctions transversales et de soutien, ainsi que les liens avec l'organisation du Maître de l'ouvrage avec leurs liens hiérarchiques et décisionnels tels que prévus d'être mis en place pour l'exécution du mandat"]
[]
[]
[]
[]
[]
[]
[]
[]
[]
[]
[]
[]
[]
[]
[]
[]
[]
[]
[]
[]
[]
[]
[]
[]
[]
[]
[]
[]
[]
[]
[]
[]
[]
[]
[]
[]
[]
[]
[]
[]
[]
[null,"1)","Report automatique de la page titre"]

{"sheet":"F31","index":19,"n_rows":39,"n_cols":11,"rows_kept":39,"cut":false,"hidden":false,"merged":[[3,3,3,8],[3,1,3,2],[4,1,4,2],[4,3,4,8],[9,8,9,10],[7,1,7,4],[8,1,8,4],[9,1,9,4],[27,1,37,10],[6,3,6,10],[5,1,5,10],[6,1,6,2],[7,8,7,10],[19,8,19,10],[8,8,8,10],[25,8,25,10],[10,8,10,10],[18,8,18,10],[11,8,11,10],[20,8,20,10],[20,1,20,4],[24,8,24,10],[23,8,23,10],[16,8,16,10],[10,1,10,4],[12,1,12,4],[15,8,15,10],[11,1,11,4],[12,8,12,10],[13,8,13,10],[14,8,14,10],[15,1,15,4],[13,1,13,4],[14,1,14,4],[26,1,26,10],[17,1,17,4],[18,1,18,4],[19,1,19,4],[21,1,21,4],[22,1,22,4],[23,1,23,4],[24,1,24,4],[25,1,25,4],[22,8,22,10],[21,8,21,10],[17,8,17,10]]}
[]
[null,null,null,null,null,null,null,null,null,null,"F31"]
[]
[null,"Critère 3 :",null,"Qualité technique de l'offre",null,null,null,null,null,"CPT",0.25]
[null,"Sous-critère 3.1",null,"Analyse du marché",null,null,null,null,null,null,0.25]
[null,"Mesures proposées quant aux risques liés au marché\nPossibilité de présenter l'analyse sur feuille A4 en annexe"]
[null,"Soumissionnaire 1) :",null,{"$f":"IF(Candidat=\"\",\"\",Candidat)","v":"Soumissionnaire…"}]
[null,"Risque interne (dans le cadre de l'exécution des prestations)",null,null,null,"Niveau de gravité","Probabilité d'occurrence","Risque estimé","Mesure proposée pour traiter le risque"]
[]
[]
[]
[]
[]
[]
[]
[]
[]
[null,"Risque externe (dans le cadre de l'exécution du projet)",null,null,null,"Niveau de gravité","Probabilité d'occurrence","Risque estimé","Mesure proposée pour traiter le risque"]
[]
[]
[]
[]
[]
[]
[]
[]
[null,"Explications et remarques du soumissionnaire concernant son offre"]
[]
[]
[]
[]
[]
[]
[]
[]
[]
[]
[]
[null,"1)","Report automatique de la page titre"]

{"sheet":"F41","index":20,"n_rows":47,"n_cols":17,"rows_kept":47,"cut":false,"hidden":false,"merged":[[43,1,43,9],[1,4,1,14],[12,4,12,6],[13,4,13,6],[8,13,8,16],[9,4,9,6],[10,4,10,6],[8,4,8,6],[9,13,9,16],[3,3,3,13],[4,3,4,13],[7,4,7,6],[7,13,7,16],[5,1,5,16],[3,14,3,15],[7,7,7,9],[7,10,7,12],[8,7,8,9],[11,7,11,9],[12,7,12,9],[13,7,13,9],[8,10,8,12],[9,10,9,12],[10,10,10,12],[27,4,27,5],[27,7,27,8],[27,13,27,14],[27,15,27,16],[26,4,26,5],[26,7,26,8],[26,13,26,14],[26,15,26,16],[26,10,26,11],[27,10,27,11],[38,1,38,3],[38,4,38,6],[38,13,38,16],[29,1,29,16],[37,4,37,6],[37,13,37,16],[35,5,35,6],[35,8,35,9],[35,11,35,12],[35,14,35,16],[38,7,38,9],[38,10,38,12],[25,7,25,8],[25,13,25,14],[25,15,25,16],[24,4,24,5],[24,7,24,8],[24,13,24,14],[24,15,24,16],[24,10,24,11],[25,10,25,11],[25,4,25,5],[23,4,23,5],[23,7,23,8],[23,13,23,14],[23,15,23,16],[22,4,22,5],[22,7,22,8],[22,13,22,14],[22,15,22,16],[22,10,22,11],[23,10,23,11],[10,7,10,9],[19,13,19,14],[19,15,19,16],[18,4,18,6],[18,13,18,16],[21,4,21,5],[21,7,21,8],[21,13,21,14],[21,15,21,16],[20,4,20,5],[20,7,20,8],[20,13,20,14],[20,15,20,16],[21,10,21,11],[19,10,19,11],[20,10,20,11],[12,10,12,12],[13,10,13,12],[18,7,18,9],[18,10,18,12],[11,10,11,12],[44,13,44,14],[44,15,44,16],[44,1,44,7],[10,13,10,16],[11,13,11,16],[12,13,12,16],[13,13,13,16],[40,1,40,16],[43,13,43,14],[43,15,43,16],[42,13,42,14],[42,15,42,16],[11,4,11,6],[17,4,17,6],[17,13,17,16],[15,1,15,16],[9,1,13,3],[19,4,19,5],[19,7,19,8],[17,7,17,9],[17,10,17,12],[37,7,37,9],[37,10,37,12],[9,7,9,9]]}
[]
[null,null,null,null,null,null,null,null,null,null,null,null,null,null,null,null,"F41"]
[]
[null,"Critère 4 :",null,"Organisation qualité et contribution du soumissionnaire aux critères DD",null,null,null,null,null,null,null,null,null,null,"CPT",null,0.08]
[null,"Sous-critère 4.1",null,"Qualifications du soumissionnaire pour satisfaire les exigences du client",null,null,null,null,null,null,null,null,null,null,null,null,0.03]
[null,"Responsabilité juridique"]
[]
[null,null,null,null,"Soumissionnaire individuel / pilote",null,null,"Membre 1",null,null,"Membre 2",null,null,"Sous traitant"]
[null,null,null,"Société 1) : ",{"$f":"IF('F2'!E10=\"\",\"\",'F2'!E10)","v":""},null,null,{"$f":"IF('F2'!E16=\"\",\"\",'F2'!E16)","v":""},null,null,{"$f":"IF('F2'!E22=\"\",\"\",'F2'!E22)","v":""},null,null,{"$f":"IF('F2'!E28=\"\",\"\",'F2'!E28)","v":""}]
[null,"Nom, prénom des personnes qui engagent la société par leur signature"]
[]
[]
[]
[]
[]
[null,"Capacité totale en personnel et formation de base des collaborateurs"]
[]
[null,null,null,null,"Soumissionnaire individuel / pilote",null,null,"Membre 1",null,null,"Membre 2",null,null,"Sous traitant"]
[null,null,null,"Société 1) : ",{"$f":"E9","v":""},null,null,{"$f":"H9","v":""},null,null,{"$f":"K9","v":""},null,null,{"$f":"N9","v":""}]
[null,null,null,null,"Succursale ou entité en charge du marché",null,"Totalité du groupe ou holding","Succursale ou entité en charge du marché",null,"Totalité du groupe ou holding","Succursale ou entité en charge du marché",null,"Totalité du groupe ou holding","Succursale ou entité en charge du marché",null,"Totalité du groupe ou holding"]
[null,"Ingénieur EPF"]
[null,"Ingénieurs ETS / HES"]
[null,"Techniciens ES"]
[null,"Directeurs de travaux"]
[null,"Dessinateurs"]
[null,"Autres collaborateurs techniques"]
[null,"Autres collaborateurs administratifs"]
[null,null,null,"Total :",{"$f":"IF(SUM(E21:F27)=0,\"\",SUM(E21:F27))","v":""},null,{"$f":"IF(SUM(G21:G27)=0,\"\",SUM(G21:G27))","v":""},{"$f":"IF(SUM(H21:I27)=0,\"\",SUM(H21:I27))","v":""},null,{"$f":"IF(SUM(J21:J27)=0,\"\",SUM(J21:J27))","v":""},{"$f":"IF(SUM(K21:L27)=0,\"\",SUM(K21:L27))","v":""},null,{"$f":"IF(SUM(M21:M27)=0,\"\",SUM(M21:M27))","v":""},{"$f":"IF(SUM(N21:O27)=0,\"\",SUM(N21:O27))","v":""},null,{"$f":"IF(SUM(P21:Q27)=0,\"\",SUM(P21:Q27))","v":""}]
[]
[null,"Organisation qualité du soumissionnaire"]
[]
[null,"Certification AQ",null,null,null," oui",null,null," oui",null,null," oui",null,null," oui"]
[]
[null,null,null,null,null," non",null,null," non",null,null," non",null,null," non"]
[]
[null,null,null,null,null," en cours",null,null," en cours",null,null," en cours",null,null," en cours"]
[]
[null,"Type de certificat"]
[null,"Si non, système de\nmanagement de la qualité"]
[]
[null,"Capacité financière du soumissionnaire"]
[]
[null,null,null,null,null,null,null,null,null,null,null,null,2018,{"$f":"M43+1","v":2019},null,{"$f":"N43+1","v":2020}]
[null,"Chiffres d'affaires annuels du candidat (ensemble des membres d'un groupement ou candidat individuel, y compris sous-traitant)",null,null,null,null,null,null,null,null,null,null,"-","-",null,"-"]
[null,"Chiffres d'affaires du pilote",null,null,null,null,null,null,null,null,null,null,"-","-",null,"-"]
[]
[null,"1)","utiliser les abréviations figurant sous F2"]

{"sheet":"Annexe 5","index":21,"n_rows":116,"n_cols":10,"rows_kept":116,"cut":false,"hidden":false,"merged":[[115,2,115,6],[115,7,115,8],[112,2,112,6],[112,7,112,8],[113,2,113,6],[113,7,113,8],[114,2,114,6],[114,7,114,8],[108,2,108,6],[108,7,108,8],[109,2,109,8],[110,1,110,3],[111,2,111,6],[111,7,111,8],[105,2,105,6],[105,7,105,8],[106,2,106,6],[106,7,106,8],[107,2,107,6],[107,7,107,8],[100,2,100,6],[101,2,101,8],[102,1,102,3],[103,2,103,6],[103,7,103,8],[104,2,104,6],[104,7,104,8],[97,2,97,6],[97,7,97,8],[98,2,98,6],[98,7,98,8],[99,2,99,6],[99,7,99,8],[92,1,92,8],[93,2,93,8],[94,1,94,3],[95,2,95,6],[95,7,95,8],[96,2,96,6],[96,7,96,8],[89,2,89,6],[89,7,89,8],[90,2,90,6],[90,7,90,8],[91,2,91,6],[91,7,91,8],[85,2,85,6],[85,7,85,8],[86,2,86,8],[87,1,87,3],[88,2,88,6],[88,7,88,8],[82,2,82,6],[82,7,82,8],[83,2,83,6],[83,7,83,8],[84,2,84,6],[84,7,84,8],[78,2,78,6],[78,7,78,8],[79,2,79,8],[80,1,80,3],[81,2,81,6],[81,7,81,8],[75,2,75,6],[75,7,75,8],[76,2,76,6],[76,7,76,8],[77,2,77,6],[77,7,77,8],[70,2,70,6],[70,7,70,8],[71,1,71,8],[72,2,72,8],[73,1,73,3],[74,2,74,6],[74,7,74,8],[67,2,67,6],[67,7,67,8],[68,2,68,6],[68,7,68,8],[69,2,69,6],[69,7,69,8],[63,2,63,6],[63,7,63,8],[64,2,64,8],[65,1,65,3],[66,2,66,6],[66,7,66,8],[60,2,60,6],[60,7,60,8],[61,2,61,6],[61,7,61,8],[62,2,62,6],[62,7,62,8],[56,2,56,6],[56,7,56,8],[57,2,57,8],[58,1,58,3],[59,2,59,6],[59,7,59,8],[53,2,53,6],[53,7,53,8],[54,2,54,6],[54,7,54,8],[55,2,55,6],[55,7,55,8],[49,2,49,6],[49,7,49,8],[50,2,50,6],[50,7,50,8],[51,2,51,8],[52,1,52,3],[45,2,45,8],[46,1,46,3],[47,2,47,6],[47,7,47,8],[48,2,48,6],[48,7,48,8],[42,2,42,6],[42,7,42,8],[43,2,43,6],[43,7,43,8],[44,2,44,6],[44,7,44,8],[38,2,38,6],[38,7,38,8],[39,2,39,8],[40,1,40,3],[41,2,41,6],[41,7,41,8],[35,2,35,6],[35,7,35,8],[36,2,36,6],[36,7,36,8],[37,2,37,6],[37,7,37,8],[31,2,31,6],[31,7,31,8],[32,2,32,6],[32,7,32,8],[33,2,33,8],[34,1,34,3],[26,2,26,6],[26,7,26,8],[27,1,27,8],[28,1,28,8],[29,2,29,8],[30,1,30,3],[22,2,22,6],[22,7,22,8],[23,2,23,8],[24,1,24,3],[25,2,25,6],[25,7,25,8],[18,2,18,6],[18,7,18,8],[19,2,19,8],[20,1,20,3],[21,2,21,6],[21,7,21,8],[16,2,16,6],[16,7,16,8],[17,2,17,6],[17,7,17,8],[10,1,10,8],[11,2,11,8],[12,1,12,3],[13,2,13,6],[13,7,13,8],[14,2,14,6],[14,7,14,8],[1,1,1,8],[3,2,3,8],[4,2,4,8],[7,1,7,3],[7,4,7,6],[8,1,8,3],[8,4,8,6],[15,2,15,6],[15,7,15,8]]}
[null,null,null,null,null,null,null,null,"ANNEXE 5"]
[null,"Contribution de l'entreprise au développement durable \n(aspects environnementaux et sociaux)"]
[]
[null,null,"La présente évaluation se fonde uniquement sur les informations fournies par le soumissionnaire après vérification de leur exactitude. En cas de doute sur l’un ou l’autre aspect, notamment sur la titularité d’une certification, son état d’avancement ou son équivalence, il appartient au soumissionnaire de remplir le questionnaire dans son intégralité puisqu’il sera évalué sur la base des seules informations exactes fournies dans celui-ci. Un faux renseignement (par exemple prétendre être titulaire d’une certification alors que tel n’est pas le cas) ou l’absence d’une preuve requise peut aboutir à l’exclusion de l’offre de la procédure. En cas de consortium, d’association de bureaux ou de pool pluridisciplinaire, chaque membre est tenu de remplir le questionnaire. "]
[null,null,"Le présent questionnaire tient compte du nombre de thématiques développements durables (aspects environnementaux et sociaux) sur lesquelles le soumissionnaire s’engage et du degré de son engagement (par exemple stade de la planification ou de la réalisation) (cf. annexe 4 de la présente directive). "]
[null,null,null,"Remplir les cellules en vert"]
[]
[null,"Nom /raison sociale :"]
[null,"Date :"]
[]
[null,"Démarche et certification dans le domaine du développement durable et/ou de la responsabilité sociétale ",null,null,null,null,null,null,null,"Points"]
[null,1.1000000000000001,"Certification développement durable ou responsabilité sociétale\nVotre entreprise est-elle au bénéfice d'un ou plusieurs certificats/labels dans le domaine du développement durable (DD) ou de la responsabilité sociétale (RSE) ?"]
[null,"Cocher une seule réponse",null,null,null,null,null,"Éléments de preuve à fournir :","Obligatoire"]
[null,null,"Non.",null,null,null,null," Aucun.",null,0]
[null,null,"Oui. Notre entreprise est certifiée ou labellisée :\nEcoEntreprise « Développement durable - Responsabilité sociétale » (2019)\nou EcoEntreprise « Excellence » (2019) \nou Bcorporation « Outstanding » ou « Extraordinary » (2020)\nou Engagé RSE « Exemplaire » (2019)\nou Ecocook 2 feuilles et + (2020).\n",null,null,null,null,"Certificat(s)/Label(s) à jour. Indiquer sur la copie le numéro 1.1. ",null,"Selon Annexe 4 directive"]
[null,null,"Oui. Notre entreprise est certifiée ou labellisée :\nEcoEntreprise « Développement durable (2019)\nou Entreprises citoyennes (2019)\nou Bcorporation « Great » ou « Good » (2020)\nou Engagé RSE « Confirmé » (2019)\nou Ecocook : 1 feuille (2020).\n",null,null,null,null,"Certificat(s)/Label(s) à jour. Indiquer sur la copie le numéro 1.1. ",null,"Selon Annexe 4 directive"]
[null,null,"Oui. Notre entreprise est certifiée ou labellisée :\nEngagé RSE « Progression » (2019)\nou par le cumul ISO 50001 (2018) et ISO 45001 (2018)\nou par le cumul ISO 50001 (2018) et ISO 14001 (2015)\nou par le cumul ISO 45001 (2018) et ISO 14001 (2015).\n",null,null,null,null,"Certificat(s)/Label(s) à jour. Indiquer sur la copie le numéro 1.1. ",null,"Selon Annexe 4 directive"]
[null,null,"Oui. Notre entreprise est certifiée :\nSA 8000 (2014)\nou ISO 14001 (2015)\nou ISO 50001 (2018)\nou par le cumul ISO 50001 (2011) et ISO 45001 (2018).\n",null,null,null,null,"Certificat(s) à jour. Indiquer sur la copie le numéro 1.1.",null,"Selon Annexe 4 directive"]
[null,null,"Oui. Notre entreprise est certifiée ou labellisée :\nEngagé RSE « Initial » (2019) \nou ISO 50001 (2011)\nou ISO 45001 (2018).",null,null,null,null,"Certificat(s)/Label(s) à jour. Indiquer sur la copie le numéro 1.1.",null,"Selon Annexe 4 directive"]
[null,1.2,"Démarche auto-évaluée ou auto-déclarée développement durable \nVotre entreprise est‐elle au bénéfice d'un statut auto‐évalué ou auto‐déclaré selon les exigences de l’un des référentiels suivants : EcoEntreprise (2019), Engagé RSE « e‐Engagé RSE » (2019) ou B Impact Assessment ?"]
[null,"Cocher une seule réponse",null,null,null,null,null,"Éléments de preuve à fournir :","Obligatoire"]
[null,null,"Non.",null,null,null,null," Aucun.",null,0]
[null,null,"Oui. Notre entreprise est au bénéfice d'un statut auto-évalué ou auto-déclaré selon les exigences de l'un des référentiels EcoEntreprise (2019), Engagé RSE « e-Engagé RSE » (2019) ou B Impact Assessment. ",null,null,null,null,"Déclaration d'engagement officielle remplie et signée. Indiquer sur la copie le numéro 1.2.",null,"Selon Annexe 4 directive"]
[null,1.3,"Certification développement durable ou responsabilité sociétale\nVotre entreprise est-elle au bénéfice d'autres certificats/labels dans le domaine du développement durable (DD) ou de la responsabilité sociétale (RSE) équivalents aux certificats/labels cités aux questions 1.1 ou 1.2? La preuve de l'équivalence est à fournir par le soumissionnaire. "]
[null,"Cocher une seule réponse",null,null,null,null,null,"Éléments de preuve à fournir :","Obligatoire"]
[null,null,"Non.",null,null,null,null," Aucun.",null,0]
[null,null,"Oui. Notre entreprise est certifiée par d'autres certificats/labels.",null,null,null,null,"Certificat(s)/Label(s) à jour. Indiquer sur la copie le numéro 1.3",null,"Selon Annexe 4 directive"]
[null,"Si vous avez répondu oui à une des trois questions ci-dessus, vous êtes dispensés de répondre aux questions ci-après"]
[null,"Engagement du soumissionnaire dans le développement durable ou la responsabilité sociétale",null,null,null,null,null,null,null,"Points"]
[null,2.1,"Démarche en cours développement durable avec l’un des référentiels cités sous 1.1\nVotre entreprise a‐t‐elle initié une démarche de développement durable à l'aide d’un des référentiels cités sous 1.1 ?"]
[null,"Cocher une seule réponse",null,null,null,null,null,"Éléments de preuve à fournir :","Obligatoire"]
[null,null,"Non.",null,null,null,null,"Aucun.",null,0]
[null,null,"Oui. Notre entreprise a initié une démarche de développement durable non certifiée à l'aide d’un des référentiels cités sous 1.1. ",null,null,null,null,"Déclaration d'engagement remplie et signée.",null,5]
[null,2.2000000000000002,"Stratégie de développement durable \nLa direction de votre entreprise a-t-elle défini une stratégie de développement durable (responsabilité écologique, solidarité sociale, efficacité économique) ? "]
[null,"Cocher une seule réponse",null,null,null,null,null,"Éléments de preuve à fournir :","Sur demande"]
[null,null,"Non.",null,null,null,null,"Aucun.",null,0]
[null,null,"Non. Mais la direction conduit une réflexion. La stratégie de développement durable est en cours d'élaboration.",null,null,null,null,"Document présentant la stratégie en réflexion (par exemple charte éthique, politique de développement durable).",null,1]
[null,null,"Oui. La direction a défini et formalisé sa stratégie dans un des pôles du développement durable (environnement ou social).",null,null,null,null,"Document décrivant la stratégie de l'entreprise dans le pôle du développement durable choisi.",null,3]
[null,null,"Oui. La direction a défini et formalisé sa stratégie dans les pôles environnement et social du développement durable.",null,null,null,null,"Document décrivant la stratégie de l'entreprise dans le pôle environnement et social du développement durable.",null,5]
[null,2.2999999999999998,"Organisation mise en place\nVotre entreprise a-t-elle une organisation permettant d'intégrer des objectifs en lien avec le développement durable (responsabilité écologique, solidarité sociale, efficacité économique) ? "]
[null,"Cocher une seule réponse",null,null,null,null,null,"Éléments de preuve à fournir :","Sur demande"]
[null,null,"Non.",null,null,null,null,"Aucun.",null,0]
[null,null,"Oui. Une organisation a été mise en place  sous l'impulsion de collaborateurs ou d'un groupe de travail. ",null,null,null,null,"Document illustrant l'organisation mise en place et indiquant la fonction et le cahier des charges des personnes impliquées.",null,2]
[null,null,"Oui. La direction a désigné un responsable \"développement durable\" (chef de projet ou un comité de coordination). Son cahier des charges comprend notamment la détermination des objectifs et des actions à entreprendre. Les moyens et ressources nécessaires sont alloués.",null,null,null,null,"Document illustrant l'organisation mise en place et indiquant la fonction et les ressources allouées à la personne désignée.",null,5]
[null,null,"Oui. La direction a mandaté un prestataire externe. Le cahier des charges ou le mandat définit notamment les objectifs, les actions et les moyens qui leurs sont alloués.",null,null,null,null,"Document illustrant l'organisation et indiquant le nom  du prestataire externe ainsi que la description du mandat et les ressources allouées.",null,5]
[null,2.4,"Suivi des performances - Monitoring\nLa direction a-t-elle mis en place un système de suivi (monitoring) incluant des indicateurs pour mesurer l'impact des actions faites en lien avec les aspects environnementaux et/ou sociaux ?"]
[null,"Cocher une seule réponse",null,null,null,null,null,"Éléments de preuve à fournir :","Sur demande"]
[null,null,"Non.",null,null,null,null,"Aucun.",null,0]
[null,null,"Oui. Mais seulement pour quelques actions.",null,null,null,null,"Document avec les indicateurs illustrant les performances des actions mises en place.",null,1]
[null,null,"Oui. Un système de suivi (monitoring) est mis en place pour l'ensemble des actions.",null,null,null,null,"Document avec les indicateurs illustrant les performances de toutes les actions mises en place.",null,4]
[null,null,"Oui. Un système de suivi (monitoring) est mis en place pour l'ensemble des actions. Il est analysé régulièrement (par exemple une fois par année) par la direction.",null,null,null,null,"Document avec les indicateurs illustrant les performances de toutes les actions mises en place et rapport d'analyse.",null,5]
[null,2.5,"Communication\nVotre entreprise communique-t-elle ses engagements et ses résultats en matière de développement durable ?"]
[null,"Cocher une seule réponse",null,null,null,null,null,"Éléments de preuve à fournir :","Sur demande"]
[null,null,"Non.",null,null,null,null,"Aucun.",null,0]
[null,null,"Oui, en interne seulement.",null,null,null,null,"Documents de communication interne (journal de l'entreprise, newsletter, mail d'information, etc.).",null,3]
[null,null,"Oui, en externe seulement.",null,null,null,null,"Documents de communication externe (article de presse, newsletter, mail d'information, etc.).",null,2]
[null,null,"Oui, en interne et en externe.",null,null,null,null,"Documents de communication interne et externe.",null,5]
[null,2.6,"Achats responsables\nVotre entreprise s'engage-t-elle pour des achats responsables (achats de produits ou services plus respectueux de l'environnement, fabriqués dans des conditions socialement respectueuses et tenant compte des coûts du cycle de vie) ?"]
[null,"Cocher une ou plusieurs réponses",null,null,null,null,null,"Éléments de preuve à fournir :","Sur demande"]
[null,null,"Non.",null,null,null,null,"Aucun.",null,0]
[null,null,"Oui. La direction a signé une politique d'achat intégrant le développement durable qui présente l'engagement et les moyens de mise en œuvre.",null,null,null,null,"Document d'engagement signé par la direction.",null,2]
[null,null,"Oui. Notre entreprise a identifié le ou les produits et fournitures qui ont un impact important en termes de développement durable (environnement, social, économie).",null,null,null,null,"Document décrivant cette analyse et ses résultats.",null,1]
[null,null,"Oui. Notre entreprise favorise l'achat de produits et fournitures dont le respect des exigences du développement durable (environnement, social, économie) est attesté par un label ou une certification.",null,null,null,null,"Liste des produits et fournitures avec indication de leur label ou certification.",null,1]
[null,null,"Oui. La direction de notre entreprise a sensibilisé et/ou formé les responsables des achats aux achats responsables.",null,null,null,null,"Document décrivant ces sensibilisations et/ou formations.",null,1]
[null,2.7,"Exigences en matières de développement durable/de responsabilité sociétale établis par le soumissionnaire envers ses sous-traitants et/ou ses fournisseurs et/ou ses partenaires\nVotre entreprise a-t-elle des exigences en matière de développement durable (DD) et/ou de responsabilité sociétale (RSE) vis-à-vis de ses propres sous-traitants et/ou ses fournisseurs et/ou ses partenaires ?"]
[null,"Cocher une ou plusieurs réponses",null,null,null,null,null,"Éléments de preuve à fournir :","Sur demande"]
[null,null,"Non.",null,null,null,null,"Aucun.",null,0]
[null,null,"Notre entreprise organise des entretiens réguliers avec nos sous-traitants, nos fournisseurs ainsi que nos partenaires pour traiter des questions sur le DD/RSE.",null,null,null,null,"Processus de revue des sous-traitants et/ou des fournisseurs et/ou des partenaires sur les questions DD/RSE.",null,1]
[null,null,"Notre entreprise impose à nos sous-traitants, nos fournisseurs ainsi qu'à nos partenaires une charte/politique traitant des aspects DD/RSE.",null,null,null,null,"Charte/Politique sur les sujets traitant des aspects DD/RSE.",null,1]
[null,null,"Notre entreprise impose à nos sous-traitants, nos fournisseurs ainsi qu'à nos partenaires un/des codes de conduites traitant des aspects DD/RSE.",null,null,null,null,"Le ou les codes de conduites.",null,1]
[null,null,"Notre entreprise vérifie, par un organisme interne ou externe, le respect de nos exigences en matière de DD/RSE auprès de nos sous-traitants, nos fournisseurs ainsi que de nos partenaires.",null,null,null,null,"Rapport(s) de vérification des exigences en matière de DD/RSE (max 3 ans).",null,2]
[null,"Engagement spécifique du soumissionnaire dans le pôle : Environnement",null,null,null,null,null,null,null,"Points"]
[null,3.1,"Gestion de l'énergie\nVotre entreprise a-t-elle pris des dispositions pour garantir la maîtrise de sa consommation d'énergie ?"]
[null,"Cocher une ou plusieurs réponses",null,null,null,null,null,"Éléments de preuve à fournir :","Sur demande"]
[null,null,"Non.",null,null,null,null,"Aucun.",null,0]
[null,null,"Oui. Notre entreprise conduit un programme d'optimisation énergétique basé sur des objectifs validés par la direction.",null,null,null,null,"Le programme d'optimisation énergétique avec les objectifs fixés par la direction. En cas de recours à un partenaire externe (par exemple Energo, AEnEC, ACT, ou un bureau d'ingénieur), joindre le contrat décrivant les objectifs d'optimisation.",null,2]
[null,null,"Oui. La direction a désigné un responsable \"énergie\". Son cahier des charges comprend notamment la détermination des objectifs et des actions à entreprendre. ",null,null,null,null,"Document illustrant l'organisation mise en place et indiquant la fonction et le cahier des charges du responsable.",null,1]
[null,null,"Oui. Un programme de sensibilisation des collaborateurs est déployé  (il comprend au moins deux actions de sensibilisation et un calendrier de mise en œuvre).",null,null,null,null,"Programme de sensibilisation comprenant au moins deux actions de sensibilisation et un calendrier de mise en œuvre.",null,1]
[null,null,"Oui. Notre entreprise procède au suivi analytique de sa consommation énergétique et dispose d'un plan de comptage des énergies (examen et analyse de la consommation énergétique ayant pour objectif d'identifier les flux énergétiques et les potentiels d'amélioration, de définir des indicateurs de performance énergétique, de mettre en place de l'instrumentation nécessaire à un suivi adapté à la taille et à la complexité de l'organisme et de suivre et analyser périodiquement les consommations et les indicateurs ).",null,null,null,null,"Rapport de suivi énergétique de l'année précédente incluant les consommations d'énergie (électricité, chaleur, eau), les indicateurs de performance énergétique (électricité, chaleur, eau par unité de production, m2 de surface chauffée, heures de fonctionnement des appareils, nombre d'ETP...), et l'analyse faite.",null,1]
[null,3.2,"Gestion des déchets\nVotre entreprise a-t-elle pris des dispositions pour réduire et valoriser les déchets générés par ses propres activités ?"]
[null,"Cocher une ou plusieurs réponses",null,null,null,null,null,"Éléments de preuve à fournir :","Sur demande"]
[null,null,"Non.",null,null,null,null,"Aucun.",null,0]
[null,null,"Oui. Notre entreprise s'est engagée à réduire la production de ses propres déchets à la source et économiser les matières premières (choix de matériaux recyclables non polluants, choix de produits à emballage limité, éco conception des produits et des prestations, etc.).",null,null,null,null,"Document présentant cet engagement (politique d'achats, directives etc.).",null,2]
[null,null,"Oui. Notre entreprise s'est engagée à  réutiliser ou réemployer les produits utilisés dans ses propres activités en prolongeant leur durée de vie en les réparant ou en leur affectant un nouvel usage.",null,null,null,null,"Document présentant cet engagement (politique d'achats, directives, exemples de réutilisation de produits, etc.).",null,1]
[null,null,"Oui. Notre entreprise s'est engagée à recycler ses propres déchets (papiers, cartons, matières plastiques, déchets verts, etc.) en instaurant un tri sélectif des déchets, et une ou des filières de recyclage au sein de l'entreprise.",null,null,null,null,"Document présentant cet engagement (politique d'achats, directives etc.) ainsi que le descriptif des infrastructures mises à disposition.",null,1]
[null,null,"Oui. Notre entreprise a déployé un programme de sensibilisation des collaborateurs visant la réduction, la réutilisation et le recyclage des déchets générés par ses activités (il comprend au moins deux actions de sensibilisation et un calendrier de mise en œuvre).",null,null,null,null,"Programme de sensibilisation comprenant au moins deux actions de sensibilisation et un calendrier de mise en œuvre.",null,1]
[null,3.3,"Plan de mobilité \nVotre entreprise a-t-elle mis en place des mesures pour rationaliser l'usage des véhicules motorisés pour le personnel et/ou les visiteurs de l'entreprise (plan de mobilité) ?"]
[null,"Cocher une seule réponse",null,null,null,null,null,"Éléments de preuve à fournir :","Sur demande"]
[null,null,"Non.",null,null,null,null,"Aucun.",null,0]
[null,null,"Non. Mais un plan de mobilité est en cours d'élaboration.",null,null,null,null,"Document(s) présentant les réflexions sur le plan de mobilité.",null,1]
[null,null,"Oui. La direction a pris des mesures (par ex. participation à l'achat d'abonnement de transports publics, nouvelle politique d'attribution des places de parc, etc.) sans pour autant avoir défini et mis en œuvre un plan de mobilité.",null,null,null,null,"Description des mesures mises en place.",null,2]
[null,null,"Oui. La direction a défini et mis en place un plan de mobilité comportant un panel de mesures complémentaires et elle a désigné un responsable de ce plan (soit en interne, soit en externe sous la forme d'un mandat).",null,null,null,null,"Documents décrivant le plan de mobilité.",null,5]
[null,"Engagement spécifique du soumissionnaire dans le pôle : Social",null,null,null,null,null,null,null,"Points"]
[null,4.0999999999999996,"Attractivité du soumissionnaire\nVotre entreprise a-t-elle pris des dispositions pour améliorer son attractivité en tant qu'employeur ?"]
[null,"Cocher une ou plusieurs réponses",null,null,null,null,null,"Éléments de preuve à fournir :","Sur demande"]
[null,null,"Non.",null,null,null,null,"Aucun.",null,0]
[null,null,"Oui. Notre entreprise offre des prestations sociales (LPP, pré-retraite, perte de gain, assurances complémentaires, etc.) allant au-delà du cadre légal.",null,null,null,null,"Document décrivant ces prestations.",null,1]
[null,null,"Oui. Notre entreprise offre des congés payés qui vont au-delà du cadre légal (congés paternité, pour enfants malades, pour les proches aidants, etc.).",null,null,null,null,"Document décrivant ces congés.",null,1]
[null,null,"Oui. Notre entreprise offre des possibilités portant sur l'organisation/flexibilité du temps de travail (par exemple travail à temps partiel, annualisation du temps de travail, job sharing, télé travail, etc.).",null,null,null,null,"Document décrivant ces possibilités.",null,1]
[null,null,"Oui. Notre entreprise offre des possibilités de prendre des congés non payés pour des besoins familiaux ou pour des activités bénévoles. ",null,null,null,null,"Document décrivant ces possibilités.",null,1]
[null,null,"Oui. Notre entreprise offre des possibilités de formation continue ou des places de stage. ",null,null,null,null,"Document décrivant ces possibilités.",null,1]
[null,4.2,"Insertion et réinsertion professionnelles\nVotre entreprise a-t-elle pris des dispositions en faveur de l'insertion et de la réinsertion professionnelles ?\n"]
[null,"Cocher une ou plusieurs réponses",null,null,null,null,null,"Éléments de preuve à fournir :","Sur demande"]
[null,null,"Non.",null,null,null,null,"Aucun.",null,0]
[null,null,"Oui. Notre entreprise favorise l'insertion et la réinsertion professionnelle des personnes qui sont au bénéfice d'indemnités chômage ou du revenu d'insertion.",null,null,null,null,"Document décrivant ces dispositions.",null,1]
[null,null,"Oui. Notre entreprise favorise la réinsertion professionnelle de ses propres collaborateurs, par exemple après un congé maladie ou un accident.",null,null,null,null,"Document décrivant ces dispositions.",null,1]
[null,null,"Oui. Notre entreprise favorise l'insertion et la réinsertion professionnelle des  personnes en situation de handicap.",null,null,null,null,"Document décrivant ces dispositions.",null,1]
[null,null,"Oui. Notre entreprise favorise l'insertion et la réinsertion des jeunes adultes en difficulté (en participant au programme FORJAD par exemple).",null,null,null,null,"Document décrivant ces dispositions.",null,1]
[null,null,"Oui. Notre entreprise travaille et/ou sollicite des organismes favorisant l'insertion et/ou la réinsertion professionnelle (ORIF, etc.).",null,null,null,null,"Document décrivant ces dispositions.",null,1]
[null,4.3,"Santé et sécurité\nVotre entreprise prend-elle des mesures pour préserver et améliorer la santé et la sécurité de ses collaborateurs (qui vont au-delà des obligations légales définies par les MSST) ?"]
[null,"Cocher une ou plusieurs réponses",null,null,null,null,null,"Éléments de preuve à fournir :","Sur demande"]
[null,null,"Non.",null,null,null,null,"Aucun.",null,0]
[null,null,"Oui. Notre entreprise participe à des campagnes de prévention (par exemple contre les dépendances ou pour favoriser le mouvement : ça marche, Bike to work, etc.).",null,null,null,null,"Document présentant la participation à ces campagnes de prévention.",null,2]
[null,null,"Oui. Notre entreprise favorise une alimentation saine au travail (par exemple en mettant à disposition une corbeille de fruits, en installant une fontaine à eau branchée sur le réseau, etc.).",null,null,null,null,"Document présentant ces mesures.",null,1]
[null,null,"Oui. Notre entreprise propose un dispositif de prévention et d'aide à la résolution de situations conflictuelles (ex. médiation, prestations de conseil). En cas de difficultés relationnelles au travail, les collaborateurs peuvent y recourir de manière confidentielle et rapide. ",null,null,null,null,"Description du dispositif de prévention et d'aide à la résolution de situations conflictuelles.",null,1]
[null,null,"Oui. Notre entreprise prend des mesures pour rendre les postes de travail ergonomiques.",null,null,null,null,"Document décrivant ces mesures.",null,1]

{"sheet":"F43","index":22,"n_rows":36,"n_cols":10,"rows_kept":36,"cut":false,"hidden":false,"merged":[[1,4,1,6],[2,4,2,8],[4,4,4,7],[5,1,5,9],[6,1,6,3],[6,4,6,9],[9,1,9,6],[17,1,17,3],[17,5,17,6],[17,7,17,9],[18,1,21,3],[18,4,21,4],[18,5,18,6],[18,7,18,9],[19,5,19,6],[19,7,19,9],[20,5,20,6],[20,7,20,9],[21,5,21,6],[21,7,21,9],[22,1,25,3],[22,4,25,4],[22,5,22,6],[22,7,22,9],[23,5,23,6],[23,7,23,9],[24,5,24,6],[24,7,24,9],[25,5,25,6],[25,7,25,9],[26,1,29,3],[26,4,29,4],[26,5,26,6],[26,7,26,9],[27,5,27,6],[27,7,27,9],[28,5,28,6],[28,7,28,9],[29,5,29,6],[29,7,29,9],[34,1,34,3],[30,1,33,3],[30,4,33,4],[30,5,30,6],[30,7,30,9],[31,5,31,6],[31,7,31,9],[32,5,32,6],[32,7,32,9],[33,5,33,6],[33,7,33,9]]}
[]
[null,null,null,null,null,null,null,null,null,"F43"]
[]
[null,"Critère 4 :",null,null,"Contribution du soumissionnaire aux critères DD",null,null,null,"CPT",0.12]
[null,"Sous-critère 4.4",null,null,"Contribution du soumissionnaire à la formation des apprentis",null,null,null,null,0.03]
[null,"Nombre d'apprentis formés ou en cours de formation durant les 4 dernières années"]
["Nombre d'apprentis en formation les 5 denières années","Soumissionnaire 1) :",null,null,"Soumissionnaire…"]
[]
[null,"Nombre d'employés du soumissionnaire"]
[null,"Nombre total des collaborateurs des sociétés en cas de groupement\n(pilote + sociétés membres + sous-traitant)"]
[]
[null,null,null," Pas d'apprentis"]
[]
[null,null,null," Recherche sans succés d'apprentis (joindre une attestation de recherche)"]
[]
[null,null,null," Apprentis selon tableau ci-dessous"]
[]
[null,"Période",null,null,"Nombre","Noms et prénoms",null,"Bureau"]
[null,"2017 - 2018"]
[]
[]
[]
[null,"2018 - 2019"]
[]
[]
[]
[null,"2019 - 2020"]
[]
[]
[]
[null,"2020 - 2021"]
[]
[]
[]
[null,"TOTAL",null,null,{"$f":"SUM(E19:E34)","v":0}]
[null,"1)","Report automatique de la page titre"]

{"sheet":"F51","index":23,"n_rows":51,"n_cols":11,"rows_kept":51,"cut":false,"hidden":false,"merged":[[12,5,12,10],[8,5,10,6],[9,1,10,3],[11,1,11,10],[6,1,6,3],[6,4,6,9],[4,4,4,8],[5,1,5,10],[7,1,7,10],[9,7,10,7],[8,8,10,10],[24,7,24,10],[19,7,19,8],[18,7,18,8],[17,1,17,6],[17,7,17,10],[19,1,19,6],[21,1,21,6],[23,9,23,10],[21,7,21,10],[22,1,22,6],[22,7,22,10],[49,1,49,10],[26,1,26,6],[26,7,26,10],[27,1,27,10],[45,1,48,10],[43,1,43,10],[44,1,44,10],[28,1,32,10],[42,6,42,10],[40,1,40,10],[41,1,41,10],[35,1,39,10],[33,1,33,10],[1,6,1,8],[13,1,13,10],[14,5,14,6],[14,9,14,10],[34,1,34,10],[16,7,16,10],[15,7,15,10],[15,1,15,6],[16,1,16,6],[19,9,19,10],[18,5,18,6],[18,9,18,10],[25,9,25,10],[24,1,24,6],[20,1,20,6],[20,7,20,10]]}
[]
[null,null,null,null,null,null,"Fiche à dupliquer (max. 5 x)               ",null,null,null,"F51.x"]
[]
[null,"Critère 5 :",null,null,"Références du soumissionnaire",null,null,null,null,"CPT",7.0000000000000007E-2]
[null,"Sous-critère 5.1",null,null,"Références du soumissionnaire en lien avec le projet",null,null,null,null,null,7.0000000000000007E-2]
[null,"Référence d'un marché comparable"]
[null,"Soumissionnaire 1) :",null,null,{"$f":"IF(Candidat=\"\",\"\",Candidat)","v":"Soumissionnaire…"}]
[]
[null,"Nom du projet :",null,null,null,null,null,"Lieu de l’objet :"]
[]
[]
[]
[null,"Maître de l'ouvrage :"]
[]
[null,"Personne de contact :",null,null,null,null,null,null,"N° de tél. :"]
[]
[null,"Montant des travaux :",null,null,null,null,null," Montant des honoraires : "]
[]
[null,"- Décompte final CHF",null,null,null,null,null," - Décompte final total CHF"]
[null,null,null,null,null,null,null," - Du bureau concerné CHF"]
[]
[null,"Rôle du bureau concerné :",null,null,null,null,null," Période des prestations :"]
[]
[null,null,null," seul",null,null," pilote d’un groupement",null,"début :"]
[]
[null,null,null," sous-traitant",null,null," partenaire d’un groupement",null,"fin :"]
[]
[null,"Description du projet (maximum 5 lignes)"]
[]
[]
[]
[]
[]
[]
[null,"Description des prestations effectuées en relation avec la référence requise :"]
[]
[]
[]
[]
[]
[null,"La (les) personne(s) qui ont effectué les prestations précitées font-elles toujours partie du bureau ?"]
[]
[null,null,null," oui",null,null," non, certaines ne font plus partie du bureau"]
[]
[null,"Pourquoi cette référence est-elle significative et représentative dans le cadre du présent appel d’offres ?"]
[]
[]
[]
[]
[]
[null,"1)","Report automatique de la page titre"]